Workbook

Sheet preliminaries
B14: Time horizon (years) | C14: 30
B16: Briefly describe the base case for CIFF management.
B17: cats - status quo (i.e. attempt eradication within 4 years) yellow crazy ants - status quo control effort forest regeneration - status quo rehabilitation plan status quo constraints on clearing of primary rainforest regulatory control of hunting with status quo enforcement effort minesite rehabilitation - one third of sites restored (by area)
B19: =CONCATENATE("Briefly describe a scenario for factors beyond CIFF management that may affect your judgments of population change over the next ",C14," years.") -> Briefly describe a scenario for factors beyond CIFF management that may affect your judgments of population change over the next 30 years.
B20: Land use change: - 20 ha mining (1/3 of which will be rehabilitated at the completion of operations) - 50 ha new urban (any associated clearing of vegetation will be offset) - 50 ha new ecotourism (any associated clearing will be offset) - 300 ha new horticulture and aquaculture (any associated clearing of vegetation will be offset) The total across the four land uses is 420 ha or 3.1% of the total 135 sq km area of the island. Climate change: 1 degree celsius warming and 10% less rainfall

Sheet candidate actions
C10: Action | D10: Description (optional)
B11: 1 | C11: Ex-situ | D11: Established on Christmas Island using 20 founder individuals. The aim would be to increase the insurance population to 35 - 60 individuals within 5 years.
B12: 2 | C12: Cat control plus | D12: status quo + 20 % additional effort targeted to CIFF
B13: 3 | C13: Yellow crazy ant control plus | D13: YCA - status quo + additional resourcing to target baiting at CIFF roost sites
B14: 4 | C14: Forest regeneration plus A | D14: an additional 1.5 ha per year, restoration with indigenous species, incl. an emphasis on indigenous food plants for CIFF
B15: 5 | C15: Forest regeneration plus B | D15: an additional 7.5 ha per year, restoration with indigenous species, incl. an emphasis on indigenous food plants for CIFF
B16: 6 | C16: Expand conservation estate A | D16: all high conservation value polygons identified
B17: 7 | C17: Expand conservation estate B | D17: as above plus Ethel Beach, Smith's Point, and 25% of area identified as 'rural'
B18: 8 | C18: Cadmium control | D18: improved dust control prior to mined material being brought to the crusher and dryer
B19: 9
B20: 10
B21: 11
B22: 12

Sheet costs
B11: Personnel costs
B13: Median annual salary, including on-costs ($k) | C13: 90
B14: Estmated cost per person-day ($k) | C14: =C13/230 -> 0.3913043478
B16: Discount rate (optional) | C16: 0
E18: UP-FRONT COSTS | I18: ANNUAL MAINTENANCE COSTS
E19: Personnel time p.a. | F19: Equipment p.a. | I19: Personnel time p.a. | J19: Maintenance materials p.a. | K19: TOTAL COST
B20: ACTION | C20: Start year | D20: End year | E20: (person days) | F20: ($k) | G20: Start year | H20: End year | I20: (person days) | J20: ($k) | K20: ($k)
B21: =IF('candidate actions'!C11="","",'candidate actions'!C11) -> Ex-situ | C21: 0 | D21: 5 | E21: 55 | F21: 180 | G21: 6 | H21: 30 | I21: 104 | J21: 75 | K21: =IF(B21="","",(PV($C$16,D21,-(E21*$C$14+F21),0)-PV($C$16,(C21-1),-(E21*$C$14+F21),0))+(PV($C$16,H21,-(I21*$C$14+J21),0)-PV($C$16,(G21-1),-(I21*$C$14+J21),0))) -> 4101.521739
B22: =IF('candidate actions'!C12="","",'candidate actions'!C12) -> Cat control plus | C22: 0 | D22: 4 | E22: 120 | F22: 97 | G22: 5 | H22: 10 | I22: 5 | J22: 8 | K22: =IF(B22="","",(PV($C$16,D22,-(E22*$C$14+F22),0)-PV($C$16,(C22-1),-(E22*$C$14+F22),0))+(PV($C$16,H22,-(I22*$C$14+J22),0)-PV($C$16,(G22-1),-(I22*$C$14+J22),0))) -> 779.5217391
B23: =IF('candidate actions'!C13="","",'candidate actions'!C13) -> Yellow crazy ant control plus | G23: 0 | H23: 30 | I23: 38 | J23: 12.2 | K23: 839.1565217
B24: =IF('candidate actions'!C14="","",'candidate actions'!C14) -> Forest regeneration plus A | G24: 0 | H24: 30 | I24: 144 | J24: 180 | K24: 7326.782609
B25: =IF('candidate actions'!C15="","",'candidate actions'!C15) -> Forest regeneration plus B | G25: 0 | H25: 30 | I25: 720 | J25: 900 | K25: 36633.91304
B26: =IF('candidate actions'!C16="","",'candidate actions'!C16) -> Expand conservation estate A | G26: 0 | H26: 30 | I26: 200 | J26: 630 | K26: 21956.08696
B27: =IF('candidate actions'!C17="","",'candidate actions'!C17) -> Expand conservation estate B | G27: 0 | H27: 30 | I27: 240 | J27: 770 | K27: 26781.30435
B28: =IF('candidate actions'!C18="","",'candidate actions'!C18) -> Cadmium control | C28: 0 | D28: 2 | E28: 65 | F28: 100 | G28: 0 | H28: 30 | I28: 52 | J28: 40 | K28: 2247.086957
B29: =IF('candidate actions'!C19="","",'candidate actions'!C19) ->  | K29: =IF(B29="","",(PV($C$16,D29,-(E29*$C$14+F29),0)-PV($C$16,(C29-1),-(E29*$C$14+F29),0))+(PV($C$16,H29,-(I29*$C$14+J29),0)-PV($C$16,(G29-1),-(I29*$C$14+J29),0))) -> 
B30: =IF('candidate actions'!C20="","",'candidate actions'!C20) -> 
B31: =IF('candidate actions'!C21="","",'candidate actions'!C21) -> 
B32: =IF('candidate actions'!C22="","",'candidate actions'!C22) -> 

Sheet participants
B9: Participant | C9: Alias | D9: Abbreviation
C10: Colonel Mustard | D10: Col M
C11: Mrs Peacock | D11: Mrs P
C12: Dr Black | D12: Dr B
C13: Reverend Green | D13: Rev G
C14: Miss Scarlet | D14: Miss S
C15: Professor Plum | D15: Prof P
C16: Dr Orchid | D16: Dr O
C17: Mrs White | D17: Mrs W
C18: Sargeant Gray | D18: Sgt G
C19: Monsieur Brunette | D19: Mon B
C20: Miss Peach | D20: Miss P
C21: Inspector Brown | D21: Insp B

Sheet judgments
C6: lower | D6: best | E6: upper | F6: confidence (%)
A7: Q1 | B7: Under ideal conditions (e.g. prior to human occupation) what do you think is the carrying capacity of the whole island?
A9: Q2 | B9: =CONCATENATE("What will be the population size ", preliminaries!C14, " years hence under the ","base case?") -> What will be the population size 30 years hence under the base case?
A11: Q3 | B11: =IF('candidate actions'!C11="","",CONCATENATE("What will be the population size ", preliminaries!$C$14, " years hence under Action 1 - ",'candidate actions'!C11," ?")) -> What will be the population size 30 years hence under Action 1 - Ex-situ ?
A12: Q4 | B12: =IF('candidate actions'!C12="","",CONCATENATE("What will be the population size ", preliminaries!$C$14, " years hence under Action 2 - ",'candidate actions'!C12," ?")) -> What will be the population size 30 years hence under Action 2 - Cat control plus ?
A13: Q5 | B13: =IF('candidate actions'!C13="","",CONCATENATE("What will be the population size ", preliminaries!$C$14, " years hence under Action 3 - ",'candidate actions'!C13," ?")) -> What will be the population size 30 years hence under Action 3 - Yellow crazy ant control plus ?
A14: Q6 | B14: =IF('candidate actions'!C14="","",CONCATENATE("What will be the population size ", preliminaries!$C$14, " years hence under Action 4 - ",'candidate actions'!C14," ?")) -> What will be the population size 30 years hence under Action 4 - Forest regeneration plus A ?
A15: Q7 | B15: =IF('candidate actions'!C15="","",CONCATENATE("What will be the population size ", preliminaries!$C$14, " years hence under Action 5 - ",'candidate actions'!C15," ?")) -> What will be the population size 30 years hence under Action 5 - Forest regeneration plus B ?
A16: Q8 | B16: =IF('candidate actions'!C16="","",CONCATENATE("What will be the population size ", preliminaries!$C$14, " years hence under Action 6 - ",'candidate actions'!C16," ?")) -> What will be the population size 30 years hence under Action 6 - Expand conservation estate A ?
A17: Q9 | B17: =IF('candidate actions'!C17="","",CONCATENATE("What will be the population size ", preliminaries!$C$14, " years hence under Action 7 - ",'candidate actions'!C17," ?")) -> What will be the population size 30 years hence under Action 7 - Expand conservation estate B ?
A18: Q10 | B18: =IF('candidate actions'!C18="","",CONCATENATE("What will be the population size ", preliminaries!$C$14, " years hence under Action 8 - ",'candidate actions'!C18," ?")) -> What will be the population size 30 years hence under Action 8 - Cadmium control ?
A19: Q11 | B19: =IF('candidate actions'!C19="","",CONCATENATE("What will be the population size ", preliminaries!$C$14, " years hence under Action 9 - ",'candidate actions'!C19," ?")) -> 
A20: Q12 | B20: =IF('candidate actions'!C20="","",CONCATENATE("What will be the population size ", preliminaries!$C$14, " years hence under Action 10 - ",'candidate actions'!C20," ?")) -> 
A21: Q13 | B21: =IF('candidate actions'!C21="","",CONCATENATE("What will be the population size ", preliminaries!$C$14, " years hence under Action 11 - ",'candidate actions'!C21," ?")) -> 
A22: Q14 | B22: =IF('candidate actions'!C22="","",CONCATENATE("What will be the population size ", preliminaries!$C$14, " years hence under Action 12 - ",'candidate actions'!C22," ?")) -> 

Sheet data entry
C6: =participants!D10 -> Col M | H6: =participants!D11 -> Mrs P | M6: =participants!D12 -> Dr B | R6: =participants!D13 -> Rev G | W6: =participants!D14 -> Miss S | AB6: =participants!D15 -> Prof P | AG6: =participants!D16 -> Dr O | AL6: =participants!D17 -> Mrs W | AQ6: =participants!D18 -> Sgt G | AV6: =participants!D19 -> Mon B | BA6: =participants!D20 -> Miss P | BF6: =participants!D21 -> Insp B
C7: lower | D7: best | E7: upper | F7: confidence (%) | H7: lower | I7: best | J7: upper | K7: confidence (%) | M7: lower | N7: best | O7: upper | P7: confidence (%) | R7: lower | S7: best | T7: upper | U7: confidence (%) | W7: lower | X7: best | Y7: upper | Z7: confidence (%) | AB7: lower | AC7: best | AD7: upper | AE7: confidence (%) | AG7: lower | AH7: best | AI7: upper | AJ7: confidence (%) | AL7: lower | AM7: best | AN7: upper | AO7: confidence (%) | AQ7: lower | AR7: best | AS7: upper | AT7: confidence (%) | AV7: lower | AW7: best | AX7: upper | AY7: confidence (%) | BA7: lower | BB7: best | BC7: upper | BD7: confidence (%) | BF7: lower | BG7: best | BH7: upper | BI7: confidence (%)
A8: =judgments!A7 -> Q1 | B8: =judgments!B7 -> Under ideal conditions (e.g. prior to human occupation) what do you think is the carrying capacity of the whole island? | C8: 3000 | D8: 4000 | E8: 5000 | F8: 70 | H8: 2000 | I8: 5000 | J8: 7000 | K8: 80 | M8: 4000 | N8: 5500 | O8: 7000 | P8: 70 | R8: 5000 | S8: 5500 | T8: 6000 | U8: 95 | W8: 3200 | X8: 4500 | Y8: 5500 | Z8: 80 | AB8: 4000 | AC8: 6000 | AD8: 8000 | AE8: 70 | AG8: 2500 | AH8: 4000 | AI8: 5000 | AJ8: 70 | AL8: 2500 | AM8: 3500 | AN8: 5500 | AO8: 70 | AQ8: 4000 | AR8: 5000 | AS8: 6000 | AT8: 80 | AV8: 3600 | AW8: 5000 | AX8: 6500 | AY8: 80 | BA8: 3000 | BB8: 5000 | BC8: 7000 | BD8: 80 | BF8: 4000 | BG8: 5500 | BH8: 7500 | BI8: 80
A10: =judgments!A9 -> Q2 | B10: =judgments!B9 -> What will be the population size 30 years hence under the base case? | C10: 2500 | D10: 3500 | E10: 4500 | F10: 70 | H10: 800 | I10: 3200 | J10: 4800 | K10: 80 | M10: 700 | N10: 2500 | O10: 3500 | P10: 60 | R10: 0 | S10: 3200 | T10: 6000 | U10: 90 | W10: 500 | X10: 2000 | Y10: 3000 | Z10: 90 | AB10: 500 | AC10: 2500 | AD10: 4000 | AE10: 70 | AG10: 1000 | AH10: 4500 | AI10: 5000 | AJ10: 95 | AL10: 1000 | AM10: 3000 | AN10: 4000 | AO10: 70 | AQ10: 500 | AR10: 2500 | AS10: 5000 | AT10: 80 | AV10: 2500 | AW10: 3800 | AX10: 4500 | AY10: 80 | BA10: 900 | BB10: 3846 | BC10: 6000 | BD10: 80 | BF10: 3000 | BG10: 3000 | BH10: 3500 | BI10: 80
A12: =judgments!A11 -> Q3 | B12: =judgments!B11 -> What will be the population size 30 years hence under Action 1 - Ex-situ ? | C12: 500 | D12: 3550 | E12: 5000 | F12: 65 | H12: 1000 | I12: 3500 | J12: 4500 | K12: 70 | M12: 1000 | N12: 2500 | O12: 5000 | P12: 50 | R12: 2475 | S12: 3850 | T12: 4702 | U12: 80 | W12: 864 | X12: 3692.16 | Y12: 5760 | Z12: 75 | AB12: 3500 | AC12: 3700 | AD12: 4000 | AE12: 50 | AG12: 2100 | AH12: 3100 | AI12: 4100 | AJ12: 70 | AL12: 600 | AM12: 2800 | AN12: 5000 | AO12: 80 | AQ12: 900 | AR12: 3000 | AS12: 4000 | AT12: 50 | AV12: 0 | AW12: 2100 | AX12: 4000 | AY12: 55 | BA12: 1500 | BB12: 3500 | BC12: 5000 | BD12: 60 | BF12: 3000 | BG12: 4000 | BH12: 5000 | BI12: 65
A13: =judgments!A12 -> Q4 | B13: =judgments!B12 -> What will be the population size 30 years hence under Action 2 - Cat control plus ? | C13: 2500 | D13: 3500 | E13: 4500 | F13: 70 | H13: 800 | I13: 2700 | J13: 4400 | K13: 80 | M13: 950 | N13: 3200 | O13: 4000 | P13: 60 | R13: 0 | S13: 2500 | T13: 4500 | U13: 60 | W13: 1000 | X13: 2500 | Y13: 3500 | Z13: 65 | AB13: 1000 | AC13: 2750 | AD13: 3000 | AE13: 65 | AG13: 500 | AH13: 3550 | AI13: 5000 | AJ13: 65 | AL13: 1000 | AM13: 3500 | AN13: 4500 | AO13: 70 | AQ13: 1000 | AR13: 2500 | AS13: 5000 | AT13: 50 | AV13: 2475 | AW13: 3850 | AX13: 4702 | AY13: 80 | BA13: 864 | BB13: 3692.16 | BC13: 5760 | BD13: 75 | BF13: 3500 | BG13: 3700 | BH13: 4000 | BI13: 50
A14: =judgments!A13 -> Q5 | B14: =judgments!B13 -> What will be the population size 30 years hence under Action 3 - Yellow crazy ant control plus ? | C14: 2050 | D14: 3050 | E14: 4050 | F14: 70 | H14: 500 | I14: 2550 | J14: 4350 | K14: 80 | M14: 910 | N14: 3100 | O14: 4000 | P14: 60 | R14: 0 | S14: 2100 | T14: 4200 | U14: 60 | W14: 800 | X14: 2200 | Y14: 3500 | Z14: 60 | AB14: 1500 | AC14: 3000 | AD14: 3500 | AE14: 65 | AG14: 500 | AH14: 3650 | AI14: 5000 | AJ14: 65 | AL14: 1000 | AM14: 3000 | AN14: 4500 | AO14: 60 | AQ14: 1000 | AR14: 2500 | AS14: 5000 | AT14: 50 | AV14: 2250 | AW14: 3500 | AX14: 4000 | AY14: 80 | BA14: 756 | BB14: 3230.64 | BC14: 5040 | BD14: 70 | BF14: 3500 | BG14: 3700 | BH14: 4000 | BI14: 50
A15: =judgments!A14 -> Q6 | B15: =judgments!B14 -> What will be the population size 30 years hence under Action 4 - Forest regeneration plus A ? | C15: 2080 | D15: 3080 | E15: 4080 | F15: 70 | H15: 750 | I15: 2600 | J15: 4600 | K15: 80 | M15: 900 | N15: 3000 | O15: 3500 | P15: 60 | R15: 0 | S15: 2600 | T15: 5000 | U15: 60 | W15: 1500 | X15: 3500 | Y15: 4500 | Z15: 60 | AB15: 2000 | AC15: 3500 | AD15: 4000 | AE15: 65 | AG15: 600 | AH15: 3900 | AI15: 5000 | AJ15: 70 | AL15: 1000 | AM15: 2500 | AN15: 4000 | AO15: 70 | AQ15: 1000 | AR15: 2500 | AS15: 5000 | AT15: 60 | AV15: 2280 | AW15: 3530 | AX15: 4205 | AY15: 80 | BA15: 765 | BB15: 3121.8 | BC15: 4845 | BD15: 70 | BF15: 3500 | BG15: 3700 | BH15: 4000 | BI15: 50
A16: =judgments!A15 -> Q7 | B16: =judgments!B15 -> What will be the population size 30 years hence under Action 5 - Forest regeneration plus B ? | C16: 2125 | D16: 3125 | E16: 4125 | F16: 70 | H16: 1000 | I16: 3000 | J16: 4800 | K16: 80 | M16: 950 | N16: 3200 | O16: 4000 | P16: 60 | R16: 0 | S16: 3100 | T16: 6000 | U16: 60 | W16: 2000 | X16: 4500 | Y16: 5500 | Z16: 70 | AB16: 2500 | AC16: 4000 | AD16: 4500 | AE16: 65 | AG16: 750 | AH16: 4100 | AI16: 6000 | AJ16: 70 | AL16: 1000 | AM16: 3000 | AN16: 5000 | AO16: 70 | AQ16: 1500 | AR16: 3000 | AS16: 5000 | AT16: 60 | AV16: 2340 | AW16: 3590 | AX16: 4265 | AY16: 80 | BA16: 855 | BB16: 3211.8 | BC16: 4935 | BD16: 70 | BF16: 3500 | BG16: 3700 | BH16: 4000 | BI16: 50
A17: =judgments!A16 -> Q8 | B17: =judgments!B16 -> What will be the population size 30 years hence under Action 6 - Expand conservation estate A ? | C17: 2200 | D17: 3200 | E17: 4200 | F17: 70 | H17: 1200 | I17: 3300 | J17: 5000 | K17: 80 | M17: 900 | N17: 3400 | O17: 4000 | P17: 70 | R17: 0 | S17: 3500 | T17: 6000 | U17: 60 | W17: 700 | X17: 2500 | Y17: 3200 | Z17: 60 | AB17: 3000 | AC17: 4000 | AD17: 5000 | AE17: 65 | AG17: 500 | AH17: 3600 | AI17: 5000 | AJ17: 55 | AL17: 2000 | AM17: 4000 | AN17: 5000 | AO17: 80 | AQ17: 1500 | AR17: 3000 | AS17: 5000 | AT17: 70 | AV17: 2295 | AW17: 3570 | AX17: 4361 | AY17: 80 | BA17: 1145 | BB17: 3501.8 | BC17: 5225 | BD17: 70 | BF17: 3500 | BG17: 3700 | BH17: 4000 | BI17: 50
A18: =judgments!A17 -> Q9 | B18: =judgments!B17 -> What will be the population size 30 years hence under Action 7 - Expand conservation estate B ? | C18: 2400 | D18: 3400 | E18: 4400 | F18: 70 | H18: 1500 | I18: 3600 | J18: 5300 | K18: 80 | M18: 1100 | N18: 3700 | O18: 5000 | P18: 70 | R18: 0 | S18: 4000 | T18: 6000 | U18: 60 | W18: 1000 | X18: 3100 | Y18: 3600 | Z18: 60 | AB18: 3500 | AC18: 4500 | AD18: 6000 | AE18: 65 | AG18: 750 | AH18: 3800 | AI18: 5000 | AJ18: 55 | AL18: 2000 | AM18: 4000 | AN18: 5000 | AO18: 80 | AQ18: 1500 | AR18: 3000 | AS18: 5000 | AT18: 70 | AV18: 2318 | AW18: 3605 | AX18: 4403 | AY18: 80 | BA18: 1238.5 | BB18: 3595.3 | BC18: 5318.5 | BD18: 70 | BF18: 3500 | BG18: 3700 | BH18: 4000 | BI18: 50
A19: =judgments!A18 -> Q10 | B19: =judgments!B18 -> What will be the population size 30 years hence under Action 8 - Cadmium control ? | C19: 2100 | D19: 3100 | E19: 4100 | F19: 70 | H19: 600 | I19: 2800 | J19: 5000 | K19: 80 | M19: 900 | N19: 3000 | O19: 4000 | P19: 50 | R19: 0 | S19: 2100 | T19: 4000 | U19: 55 | W19: 1500 | X19: 3500 | Y19: 5000 | Z19: 60 | AB19: 3000 | AC19: 4000 | AD19: 5000 | AE19: 65 | AG19: 500 | AH19: 3500 | AI19: 5000 | AJ19: 60 | AL19: 2000 | AM19: 3500 | AN19: 5000 | AO19: 75 | AQ19: 1500 | AR19: 3000 | AS19: 5000 | AT19: 50 | AV19: 2362 | AW19: 3675 | AX19: 4489 | AY19: 80 | BA19: 727.2 | BB19: 3107.568 | BC19: 4848 | BD19: 70 | BF19: 3500 | BG19: 3700 | BH19: 4000 | BI19: 50
A20: =judgments!A19 -> Q11 | B20: =judgments!B19 -> 
A21: =judgments!A20 -> Q12 | B21: =judgments!B20 -> 
A22: =judgments!A21 -> Q13 | B22: =judgments!B21 -> 
A23: =judgments!A22 -> Q14 | B23: =judgments!B22 -> 

Sheet value judgment
B11: =CONCATENATE("Imagine three possible futures for Christmas Island Flying Fox at the end of ",preliminaries!C14," years:") -> Imagine three possible futures for Christmas Island Flying Fox at the end of 30 years:
B13: Future state | C13: population size | D13: feeling | E13: value
B14: i. Extinction | C14: 0 | D14: terrible | E14: 0
B15: ii. A population size of… | C15: 600 | D15: 50/50 | E15: 50
B16: iii. A population equivalent to the island's estimated carrying capacity | C16: =outcomes_1!C43 -> 4875 | D16: wonderful | E16: 100
B18: Step 1 Assign a number in the highlighted cell C19 that leaves you with the feeling that a change from scenario i to scenario ii is just as good (but no better) as a change from scenario ii to iii.
B20: Step 2 THEN (a) click on the 'fit curve' button, and (b) the okay button on the 'Solver Results' pop-up.
B22: If the computer is behaving, the green cell at F50 below should be zero after Step 2.
B23: Check that the curve plotted below is a reasonable reflection of your value judgment. If not, go back to step 1.
B24: Note that sometimes the computer gets stuck in the calculation it makes at step 2.
B25: If you think this might be happening then change the number in the blue cell D55 below with a randomly chosen number between 10 and 1000. Then repeat step 2.
B43: Solver
B44: value | C44: wild (%) | D44: ρ | E44: fit | F44: check
B45: 0 | C45: 0 | D45: 870.2423855 | E45: =(1-EXP(-(C45-$C$45)/$D$45))/(1-EXP(-($C$47-$C$45)/$D$45)) -> 0
B46: 0.5 | C46: =C15 -> 600 | E46: =(1-EXP(-(C46-$C$45)/$D$45))/(1-EXP(-($C$47-$C$45)/$D$45)) -> 0.5000000002 | F46: =ABS(B46-E46) -> 1.89802507e-10
B47: 1 | C47: =C16 -> 4875 | E47: =(1-EXP(-(C47-$C$45)/$D$45))/(1-EXP(-($C$47-$C$45)/$D$45)) -> 1
B73: population size in the wild | C73: value
A74: 0 | B74: =A74/60*$C$47 -> 0 | C74: =100*(1-EXP(-(B74-$C$45)/$D$45))/(1-EXP(-($C$47-$C$45)/$D$45)) -> 0
A75: 1 | B75: 81.25 | C75: =100*(1-EXP(-(B75-$C$45)/$D$45))/(1-EXP(-($C$47-$C$45)/$D$45)) -> 8.946905638
A76: 2 | B76: 162.5 | C76: 17.09629452
A77: 3 | B77: 243.75 | C77: 24.51925637
A78: 4 | B78: 325 | C78: 31.28054404
A79: 5 | B79: 406.25 | C79: 37.43913839
A80: 6 | B80: 487.5 | C80: 43.04876282
A81: 7 | B81: 568.75 | C81: 48.15835185
A82: 8 | B82: 650 | C82: 52.81247806
A83: 9 | B83: 731.25 | C83: 57.05174089
A84: 10 | B84: 812.5 | C84: 60.91312076
A85: 11 | B85: 893.75 | C85: 64.43030172
A86: 12 | B86: 975 | C86: 67.63396526
A87: 13 | B87: 1056.25 | C87: 70.55205797
A88: 14 | B88: 1137.5 | C88: 73.21003529
A89: 15 | B89: 1218.75 | C89: 75.63108361
A90: 16 | B90: 1300 | C90: 77.83632249
A91: 17 | B91: 1381.25 | C91: 79.84498895
A92: 18 | B92: 1462.5 | C92: 81.67460522
A93: 19 | B93: 1543.75 | C93: 83.34113163
A94: 20 | B94: 1625 | C94: 84.85910581
A95: 21 | B95: 1706.25 | C95: 86.24176954
A96: 22 | B96: 1787.5 | C96: 87.50118423
A97: 23 | B97: 1868.75 | C97: 88.64833617
A98: 24 | B98: 1950 | C98: 89.69323232
A99: 25 | B99: 2031.25 | C99: 90.64498764
A100: 26 | B100: 2112.5 | C100: 91.5119046
A101: 27 | B101: 2193.75 | C101: 92.30154559
A102: 28 | B102: 2275 | C102: 93.0207989
A103: 29 | B103: 2356.25 | C103: 93.67593881
A104: 30 | B104: 2437.5 | C104: 94.27268031
A105: 31 | B105: 2518.75 | C105: 94.81622897
A106: 32 | B106: =A106/60*$C$47 -> 2600 | C106: 95.31132633
A107: 33 | B107: 2681.25 | C107: 95.76229129
A108: 34 | B108: 2762.5 | C108: 96.17305776
A109: 35 | B109: 2843.75 | C109: 96.54720898
A110: 36 | B110: 2925 | C110: 96.8880088
A111: 37 | B111: 3006.25 | C111: 97.19843012
A112: 38 | B112: 3087.5 | C112: 97.48118085
A113: 39 | B113: 3168.75 | C113: 97.7387275
A114: 40 | B114: 3250 | C114: 97.97331675
A115: 41 | B115: 3331.25 | C115: 98.18699498
A116: 42 | B116: 3412.5 | C116: 98.38162619
A117: 43 | B117: 3493.75 | C117: 98.55890819
A118: 44 | B118: 3575 | C118: 98.72038748
A119: 45 | B119: 3656.25 | C119: 98.8674727
A120: 46 | B120: 3737.5 | C120: 99.00144691
A121: 47 | B121: 3818.75 | C121: 99.12347882
A122: 48 | B122: 3900 | C122: 99.23463295
A123: 49 | B123: 3981.25 | C123: 99.33587892
A124: 50 | B124: 4062.5 | C124: 99.42809995
A125: 51 | B125: 4143.75 | C125: 99.5121005
A126: 52 | B126: 4225 | C126: 99.58861334
A127: 53 | B127: 4306.25 | C127: 99.65830592
A128: 54 | B128: 4387.5 | C128: 99.72178618
A129: 55 | B129: 4468.75 | C129: 99.77960788
A130: 56 | B130: 4550 | C130: 99.83227543
A131: 57 | B131: 4631.25 | C131: 99.88024825
A132: 58 | B132: 4712.5 | C132: 99.92394483
A133: 59 | B133: 4793.75 | C133: 99.96374634
A134: 60 | B134: 4875 | C134: 100

Sheet ex-situ judgments
B13: Task 1 (TECHNICAL judgments): Prospects for success in captive breeding
E15: From inception of a captive breeding program, how many years later would you like to judge success? | F15: 5
E17: =CONCATENATE("And what do you think is the chance (%) of captive breeding success after ",F15,," years?") -> And what do you think is the chance (%) of captive breeding success after 5 years? | F17: 0.8
B20: Task 2 (VALUE judgment): COMBINED value of an insurance population and wild population
B22: The value of an insurance population held in captivity may depend on the size of the population in the wild.
B23: Let's say we place a value of zero to the worst possible outcome and a value of 100 to the best possible outcome.
B24: Note that 100 refers to the combined value of the wild and insurance populations.
B26: Outcome | C26: population size in the wild | D26: insurance population | E26: value
B27: worst | C27: 0 | D27: no | E27: 0
B28: best | C28: 4875 | D28: yes | E28: 100
B30: Now keeping in mind a scale of 0 to 100 for these bookend outcomes, rate the two intermediate outcomes, A and B, below:
B32: Outcome | C32: population size in the wild | D32: Insurance population | E32: value
B33: worst | C33: =C27 -> 0 | D33: no | E33: 0
B34: A | C34: =C28 -> 4875 | D34: no | E34: 100
B35: B | C35: =C33 -> 0 | D35: yes | E35: 20
B36: best | C36: =C34 -> 4875 | D36: yes | E36: 100
B70: value|insurance = no
B71: marginal value function
B72: value | C72: wild (%) | D72: ρ | E72: fit | F72: check
B73: 0 | C73: 0 | D73: ='value judgment'!D45 -> 870.2423855 | E73: =($E$34/100)*(1-EXP(-(C73-$C$73)/$D$73))/(1-EXP(-($C$75-$C$73)/$D$73))+0 -> 0 | F73: =ABS(B73-E73) -> 0
B74: =B73+(B75-B73)/2 -> 0.5 | C74: ='value judgment'!C46 -> 600 | E74: =($E$34/100)*(1-EXP(-(C74-$C$73)/$D$73))/(1-EXP(-($C$75-$C$73)/$D$73))+0 -> 0.5000000002 | F74: =ABS(B74-E74) -> 1.89802507e-10
B75: =(E34/100) -> 1 | C75: ='value judgment'!C16 -> 4875 | E75: =($E$34/100)*(1-EXP(-(C75-$C$73)/$D$73))/(1-EXP(-($C$75-$C$73)/$D$73))+0 -> 1 | F75: =ABS(B75-E75) -> 0
B78: value|insurance = yes
B79: marginal value function
B80: value | C80: wild (%) | D80: ρ | E80: fit | F80: check
B81: =E35/100 -> 0.2 | C81: 0 | D81: ='value judgment'!D45 -> 870.2423855 | E81: =(((100-$E$35)/100)*(1-EXP(-(C81-$C$81)/$D$81))/(1-EXP(-($C$83-$C$81)/$D$81))+($E$35/100)) -> 0.2 | F81: =ABS(B81-E81) -> 0
B82: =B81+(B83-B81)/2 -> 0.6 | C82: ='value judgment'!C46 -> 600 | E82: =(((100-$E$35)/100)*(1-EXP(-(C82-$C$81)/$D$81))/(1-EXP(-($C$83-$C$81)/$D$81))+($E$35/100)) -> 0.6000000002 | F82: =ABS(B82-E82) -> 1.518419834e-10
B83: 1 | C83: ='value judgment'!C16 -> 4875 | E83: =(((100-$E$35)/100)*(1-EXP(-(C83-$C$81)/$D$81))/(1-EXP(-($C$83-$C$81)/$D$81))+($E$35/100)) -> 1 | F83: =ABS(B83-E83) -> 0
B85: population size in the wild | C85: value|insurance = no | D85: value|insurance = yes
B86: ='value judgment'!B74 -> 0 | C86: =100*(($E$34/100)*(1-EXP(-(B86-$C$73)/$D$73))/(1-EXP(-($C$75-$C$73)/$D$73))+0) -> 0 | D86: =100*(((100-$E$35)/100)*(1-EXP(-(B86-$C$81)/$D$81))/(1-EXP(-($C$83-$C$81)/$D$81))+($E$35/100)) -> 20
B87: ='value judgment'!B75 -> 81.25 | C87: =100*(($E$34/100)*(1-EXP(-(B87-$C$73)/$D$73))/(1-EXP(-($C$75-$C$73)/$D$73))+0) -> 8.946905638 | D87: =100*(((100-$E$35)/100)*(1-EXP(-(B87-$C$81)/$D$81))/(1-EXP(-($C$83-$C$81)/$D$81))+($E$35/100)) -> 27.15752451
B88: ='value judgment'!B76 -> 162.5 | C88: 17.09629452 | D88: 33.67703562
B89: ='value judgment'!B77 -> 243.75 | C89: 24.51925637 | D89: =100*(((100-$E$35)/100)*(1-EXP(-(B89-$C$81)/$D$81))/(1-EXP(-($C$83-$C$81)/$D$81))+($E$35/100)) -> 39.61540509
B90: ='value judgment'!B78 -> 325 | C90: 31.28054404 | D90: =100*(((100-$E$35)/100)*(1-EXP(-(B90-$C$81)/$D$81))/(1-EXP(-($C$83-$C$81)/$D$81))+($E$35/100)) -> 45.02443523
B91: ='value judgment'!B79 -> 406.25 | C91: 37.43913839 | D91: 49.95131071
B92: ='value judgment'!B80 -> 487.5 | C92: 43.04876282 | D92: 54.43901025
B93: ='value judgment'!B81 -> 568.75 | C93: 48.15835185 | D93: 58.52668148
B94: ='value judgment'!B82 -> 650 | C94: 52.81247806 | D94: 62.24998245
B95: ='value judgment'!B83 -> 731.25 | C95: 57.05174089 | D95: 65.64139271
B96: ='value judgment'!B84 -> 812.5 | C96: 60.91312076 | D96: 68.7304966
B97: ='value judgment'!B85 -> 893.75 | C97: 64.43030172 | D97: 71.54424137
B98: ='value judgment'!B86 -> 975 | C98: 67.63396526 | D98: 74.10717221
B99: ='value judgment'!B87 -> 1056.25 | C99: 70.55205797 | D99: 76.44164638
B100: ='value judgment'!B88 -> 1137.5 | C100: 73.21003529 | D100: 78.56802823
B101: ='value judgment'!B89 -> 1218.75 | C101: 75.63108361 | D101: 80.50486688
B102: ='value judgment'!B90 -> 1300 | C102: 77.83632249 | D102: 82.26905799
B103: ='value judgment'!B91 -> 1381.25 | C103: 79.84498895 | D103: 83.87599116
B104: ='value judgment'!B92 -> 1462.5 | C104: 81.67460522 | D104: 85.33968418
B105: ='value judgment'!B93 -> 1543.75 | C105: 83.34113163 | D105: 86.6729053
B106: ='value judgment'!B94 -> 1625 | C106: 84.85910581 | D106: 87.88728465
B107: ='value judgment'!B95 -> 1706.25 | C107: 86.24176954 | D107: 88.99341563
B108: ='value judgment'!B96 -> 1787.5 | C108: 87.50118423 | D108: 90.00094739
B109: ='value judgment'!B97 -> 1868.75 | C109: 88.64833617 | D109: 90.91866894
B110: ='value judgment'!B98 -> 1950 | C110: 89.69323232 | D110: 91.75458585
B111: ='value judgment'!B99 -> 2031.25 | C111: 90.64498764 | D111: 92.51599011
B112: ='value judgment'!B100 -> 2112.5 | C112: 91.5119046 | D112: 93.20952368
B113: ='value judgment'!B101 -> 2193.75 | C113: 92.30154559 | D113: 93.84123647
B114: ='value judgment'!B102 -> 2275 | C114: 93.0207989 | D114: 94.41663912
B115: ='value judgment'!B103 -> 2356.25 | C115: 93.67593881 | D115: 94.94075105
B116: ='value judgment'!B104 -> 2437.5 | C116: 94.27268031 | D116: 95.41814425
B117: ='value judgment'!B105 -> 2518.75 | C117: 94.81622897 | D117: 95.85298317
B118: ='value judgment'!B106 -> 2600 | C118: 95.31132633 | D118: 96.24906106
B119: ='value judgment'!B107 -> 2681.25 | C119: 95.76229129 | D119: 96.60983303
B120: ='value judgment'!B108 -> 2762.5 | C120: 96.17305776 | D120: 96.93844621
B121: ='value judgment'!B109 -> 2843.75 | C121: 96.54720898 | D121: 97.23776719
B122: ='value judgment'!B110 -> 2925 | C122: 96.8880088 | D122: 97.51040704
B123: ='value judgment'!B111 -> 3006.25 | C123: 97.19843012 | D123: 97.7587441
B124: ='value judgment'!B112 -> 3087.5 | C124: 97.48118085 | D124: 97.98494468
B125: ='value judgment'!B113 -> 3168.75 | C125: 97.7387275 | D125: 98.190982
B126: ='value judgment'!B114 -> 3250 | C126: 97.97331675 | D126: 98.3786534
B127: ='value judgment'!B115 -> 3331.25 | C127: 98.18699498 | D127: 98.54959599
B128: ='value judgment'!B116 -> 3412.5 | C128: 98.38162619 | D128: 98.70530095
B129: ='value judgment'!B117 -> 3493.75 | C129: 98.55890819 | D129: 98.84712655
B130: ='value judgment'!B118 -> 3575 | C130: 98.72038748 | D130: 98.97630999
B131: ='value judgment'!B119 -> 3656.25 | C131: 98.8674727 | D131: 99.09397816
B132: ='value judgment'!B120 -> 3737.5 | C132: 99.00144691 | D132: 99.20115753
B133: ='value judgment'!B121 -> 3818.75 | C133: 99.12347882 | D133: 99.29878306
B134: ='value judgment'!B122 -> 3900 | C134: 99.23463295 | D134: 99.38770636
B135: ='value judgment'!B123 -> 3981.25 | C135: 99.33587892 | D135: 99.46870314
B136: ='value judgment'!B124 -> 4062.5 | C136: 99.42809995 | D136: 99.54247996
B137: ='value judgment'!B125 -> 4143.75 | C137: 99.5121005 | D137: 99.6096804
B138: ='value judgment'!B126 -> 4225 | C138: 99.58861334 | D138: 99.67089067
B139: ='value judgment'!B127 -> 4306.25 | C139: 99.65830592 | D139: 99.72664473
B140: ='value judgment'!B128 -> 4387.5 | C140: 99.72178618 | D140: 99.77742894
B141: ='value judgment'!B129 -> 4468.75 | C141: 99.77960788 | D141: 99.82368631
B142: ='value judgment'!B130 -> 4550 | C142: 99.83227543 | D142: 99.86582034
B143: ='value judgment'!B131 -> 4631.25 | C143: 99.88024825 | D143: 99.9041986
B144: ='value judgment'!B132 -> 4712.5 | C144: 99.92394483 | D144: 99.93915586
B145: ='value judgment'!B133 -> 4793.75 | C145: 99.96374634 | D145: 99.97099708
B146: ='value judgment'!B134 -> 4875 | C146: 100 | D146: 100

Sheet Q1
B52: ='data entry'!A8 -> Q1 | C52: ='data entry'!B8 -> Under ideal conditions (e.g. prior to human occupation) what do you think is the carrying capacity of the whole island?
C54: lower | D54: best | E54: upper | F54: confidence (%) | G54: 90% lower | H54: 90% upper | I54: lower bound | J54: upper bound
B55: =participants!D10 -> Col M | C55: =IF('data entry'!C8="","",'data entry'!C8) -> 3000 | D55: =IF('data entry'!D8="","",'data entry'!D8) -> 4000 | E55: =IF('data entry'!E8="","",'data entry'!E8) -> 5000 | F55: =IF('data entry'!F8="","",'data entry'!F8) -> 70 | G55: =IF(D55="","",MAX(0,((D55-((D55-C55)/F55)*90)))) -> 2714.285714 | H55: =IF(D55="","",((D55-((D55-E55)/F55)*90))) -> 5285.714286 | I55: =IF(D55="","",(D55-G55)) -> 1285.714286 | J55: =IF(D55="","",(H55-D55)) -> 1285.714286
B56: =participants!D11 -> Mrs P | C56: =IF('data entry'!H8="","",'data entry'!H8) -> 2000 | D56: =IF('data entry'!I8="","",'data entry'!I8) -> 5000 | E56: =IF('data entry'!J8="","",'data entry'!J8) -> 7000 | F56: =IF('data entry'!K8="","",'data entry'!K8) -> 80 | G56: =IF(D56="","",MAX(0,((D56-((D56-C56)/F56)*90)))) -> 1625 | H56: =IF(D56="","",((D56-((D56-E56)/F56)*90))) -> 7250 | I56: =IF(D56="","",(D56-G56)) -> 3375 | J56: =IF(D56="","",(H56-D56)) -> 2250
B57: =participants!D12 -> Dr B | C57: =IF('data entry'!M8="","",'data entry'!M8) -> 4000 | D57: =IF('data entry'!N8="","",'data entry'!N8) -> 5500 | E57: =IF('data entry'!O8="","",'data entry'!O8) -> 7000 | F57: =IF('data entry'!P8="","",'data entry'!P8) -> 70 | G57: 3571.428571 | H57: 7428.571429 | I57: 1928.571429 | J57: 1928.571429
B58: =participants!D13 -> Rev G | C58: =IF('data entry'!R8="","",'data entry'!R8) -> 5000 | D58: =IF('data entry'!S8="","",'data entry'!S8) -> 5500 | E58: =IF('data entry'!T8="","",'data entry'!T8) -> 6000 | F58: =IF('data entry'!U8="","",'data entry'!U8) -> 95 | G58: 5026.315789 | H58: 5973.684211 | I58: 473.6842105 | J58: 473.6842105
B59: =participants!D14 -> Miss S | C59: =IF('data entry'!W8="","",'data entry'!W8) -> 3200 | D59: =IF('data entry'!X8="","",'data entry'!X8) -> 4500 | E59: =IF('data entry'!Y8="","",'data entry'!Y8) -> 5500 | F59: =IF('data entry'!Z8="","",'data entry'!Z8) -> 80 | G59: 3037.5 | H59: 5625 | I59: 1462.5 | J59: 1125
B60: =participants!D15 -> Prof P | C60: =IF('data entry'!AB8="","",'data entry'!AB8) -> 4000 | D60: =IF('data entry'!AC8="","",'data entry'!AC8) -> 6000 | E60: =IF('data entry'!AD8="","",'data entry'!AD8) -> 8000 | F60: =IF('data entry'!AE8="","",'data entry'!AE8) -> 70 | G60: 3428.571429 | H60: 8571.428571 | I60: 2571.428571 | J60: 2571.428571
B61: =participants!D16 -> Dr O | C61: =IF('data entry'!AG8="","",'data entry'!AG8) -> 2500 | D61: =IF('data entry'!AH8="","",'data entry'!AH8) -> 4000 | E61: =IF('data entry'!AI8="","",'data entry'!AI8) -> 5000 | F61: =IF('data entry'!AJ8="","",'data entry'!AJ8) -> 70 | G61: 2071.428571 | H61: 5285.714286 | I61: 1928.571429 | J61: 1285.714286
B62: =participants!D17 -> Mrs W | C62: =IF('data entry'!AL8="","",'data entry'!AL8) -> 2500 | D62: =IF('data entry'!AM8="","",'data entry'!AM8) -> 3500 | E62: =IF('data entry'!AN8="","",'data entry'!AN8) -> 5500 | F62: =IF('data entry'!AO8="","",'data entry'!AO8) -> 70 | G62: 2214.285714 | H62: 6071.428571 | I62: 1285.714286 | J62: 2571.428571
B63: =participants!D18 -> Sgt G | C63: =IF('data entry'!AQ8="","",'data entry'!AQ8) -> 4000 | D63: =IF('data entry'!AR8="","",'data entry'!AR8) -> 5000 | E63: =IF('data entry'!AS8="","",'data entry'!AS8) -> 6000 | F63: =IF('data entry'!AT8="","",'data entry'!AT8) -> 80 | G63: 3875 | H63: 6125 | I63: 1125 | J63: 1125
B64: =participants!D19 -> Mon B | C64: =IF('data entry'!AV8="","",'data entry'!AV8) -> 3600 | D64: =IF('data entry'!AW8="","",'data entry'!AW8) -> 5000 | E64: =IF('data entry'!AX8="","",'data entry'!AX8) -> 6500 | F64: =IF('data entry'!AY8="","",'data entry'!AY8) -> 80 | G64: 3425 | H64: 6687.5 | I64: 1575 | J64: 1687.5
B65: =participants!D20 -> Miss P | C65: =IF('data entry'!BA8="","",'data entry'!BA8) -> 3000 | D65: =IF('data entry'!BB8="","",'data entry'!BB8) -> 5000 | E65: =IF('data entry'!BC8="","",'data entry'!BC8) -> 7000 | F65: =IF('data entry'!BD8="","",'data entry'!BD8) -> 80 | G65: 2750 | H65: 7250 | I65: 2250 | J65: 2250
B66: =participants!D21 -> Insp B | C66: =IF('data entry'!BF8="","",'data entry'!BF8) -> 4000 | D66: =IF('data entry'!BG8="","",'data entry'!BG8) -> 5500 | E66: =IF('data entry'!BH8="","",'data entry'!BH8) -> 7500 | F66: =IF('data entry'!BI8="","",'data entry'!BI8) -> 80 | G66: 3812.5 | H66: 7750 | I66: 1687.5 | J66: 2250
B67: pooled | D67: =IF(COUNT(D55:D66)=0,"",AVERAGE(D55:D66)) -> 4875 | G67: =IF(COUNT(G55:G66)=0,"",AVERAGE(G55:G66)) -> 3129.276316 | H67: =IF(COUNT(H55:H66)=0,"",AVERAGE(H55:H66)) -> 6608.670113 | I67: 1745.723684 | J67: 1733.670113

Sheet Q2
B52: ='data entry'!A10 -> Q2 | C52: ='data entry'!B10 -> What will be the population size 30 years hence under the base case?
C54: lower | D54: best | E54: upper | F54: confidence (%) | G54: 90% lower | H54: 90% upper | I54: lower bound | J54: upper bound
B55: =participants!D10 -> Col M | C55: =IF('data entry'!C10="","",'data entry'!C10) -> 2500 | D55: =IF('data entry'!D10="","",'data entry'!D10) -> 3500 | E55: =IF('data entry'!E10="","",'data entry'!E10) -> 4500 | F55: =IF('data entry'!F10="","",'data entry'!F10) -> 70 | G55: =IF(D55="","",MAX(0,((D55-((D55-C55)/F55)*90)))) -> 2214.285714 | H55: =IF(D55="","",((D55-((D55-E55)/F55)*90))) -> 4785.714286 | I55: =IF(D55="","",(D55-G55)) -> 1285.714286 | J55: =IF(D55="","",(H55-D55)) -> 1285.714286
B56: =participants!D11 -> Mrs P | C56: =IF('data entry'!H10="","",'data entry'!H10) -> 800 | D56: =IF('data entry'!I10="","",'data entry'!I10) -> 3200 | E56: =IF('data entry'!J10="","",'data entry'!J10) -> 4800 | F56: =IF('data entry'!K10="","",'data entry'!K10) -> 80 | G56: =IF(D56="","",MAX(0,((D56-((D56-C56)/F56)*90)))) -> 500 | H56: =IF(D56="","",((D56-((D56-E56)/F56)*90))) -> 5000 | I56: =IF(D56="","",(D56-G56)) -> 2700 | J56: =IF(D56="","",(H56-D56)) -> 1800
B57: =participants!D12 -> Dr B | C57: =IF('data entry'!M10="","",'data entry'!M10) -> 700 | D57: =IF('data entry'!N10="","",'data entry'!N10) -> 2500 | E57: =IF('data entry'!O10="","",'data entry'!O10) -> 3500 | F57: =IF('data entry'!P10="","",'data entry'!P10) -> 60 | G57: 0 | H57: 4000 | I57: 2500 | J57: 1500
B58: =participants!D13 -> Rev G | C58: =IF('data entry'!R10="","",'data entry'!R10) -> 0 | D58: =IF('data entry'!S10="","",'data entry'!S10) -> 3200 | E58: =IF('data entry'!T10="","",'data entry'!T10) -> 6000 | F58: =IF('data entry'!U10="","",'data entry'!U10) -> 90 | G58: 0 | H58: 6000 | I58: 3200 | J58: 2800
B59: =participants!D14 -> Miss S | C59: =IF('data entry'!W10="","",'data entry'!W10) -> 500 | D59: =IF('data entry'!X10="","",'data entry'!X10) -> 2000 | E59: =IF('data entry'!Y10="","",'data entry'!Y10) -> 3000 | F59: =IF('data entry'!Z10="","",'data entry'!Z10) -> 90 | G59: 500 | H59: 3000 | I59: 1500 | J59: 1000
B60: =participants!D15 -> Prof P | C60: =IF('data entry'!AB10="","",'data entry'!AB10) -> 500 | D60: =IF('data entry'!AC10="","",'data entry'!AC10) -> 2500 | E60: =IF('data entry'!AD10="","",'data entry'!AD10) -> 4000 | F60: =IF('data entry'!AE10="","",'data entry'!AE10) -> 70 | G60: 0 | H60: 4428.571429 | I60: 2500 | J60: 1928.571429
B61: =participants!D16 -> Dr O | C61: =IF('data entry'!AG10="","",'data entry'!AG10) -> 1000 | D61: =IF('data entry'!AH10="","",'data entry'!AH10) -> 4500 | E61: =IF('data entry'!AI10="","",'data entry'!AI10) -> 5000 | F61: =IF('data entry'!AJ10="","",'data entry'!AJ10) -> 95 | G61: 1184.210526 | H61: 4973.684211 | I61: 3315.789474 | J61: 473.6842105
B62: =participants!D17 -> Mrs W | C62: =IF('data entry'!AL10="","",'data entry'!AL10) -> 1000 | D62: =IF('data entry'!AM10="","",'data entry'!AM10) -> 3000 | E62: =IF('data entry'!AN10="","",'data entry'!AN10) -> 4000 | F62: =IF('data entry'!AO10="","",'data entry'!AO10) -> 70 | G62: 428.5714286 | H62: 4285.714286 | I62: 2571.428571 | J62: 1285.714286
B63: =participants!D18 -> Sgt G | C63: =IF('data entry'!AQ10="","",'data entry'!AQ10) -> 500 | D63: =IF('data entry'!AR10="","",'data entry'!AR10) -> 2500 | E63: =IF('data entry'!AS10="","",'data entry'!AS10) -> 5000 | F63: =IF('data entry'!AT10="","",'data entry'!AT10) -> 80 | G63: 250 | H63: 5312.5 | I63: 2250 | J63: 2812.5
B64: =participants!D19 -> Mon B | C64: =IF('data entry'!AV10="","",'data entry'!AV10) -> 2500 | D64: =IF('data entry'!AW10="","",'data entry'!AW10) -> 3800 | E64: =IF('data entry'!AX10="","",'data entry'!AX10) -> 4500 | F64: =IF('data entry'!AY10="","",'data entry'!AY10) -> 80 | G64: 2337.5 | H64: 4587.5 | I64: 1462.5 | J64: 787.5
B65: =participants!D20 -> Miss P | C65: =IF('data entry'!BA10="","",'data entry'!BA10) -> 900 | D65: =IF('data entry'!BB10="","",'data entry'!BB10) -> 3846 | E65: =IF('data entry'!BC10="","",'data entry'!BC10) -> 6000 | F65: =IF('data entry'!BD10="","",'data entry'!BD10) -> 80 | G65: 531.75 | H65: 6269.25 | I65: 3314.25 | J65: 2423.25
B66: =participants!D21 -> Insp B | C66: =IF('data entry'!BF10="","",'data entry'!BF10) -> 3000 | D66: =IF('data entry'!BG10="","",'data entry'!BG10) -> 3000 | E66: =IF('data entry'!BH10="","",'data entry'!BH10) -> 3500 | F66: =IF('data entry'!BI10="","",'data entry'!BI10) -> 80 | G66: 3000 | H66: 3562.5 | I66: 0 | J66: 562.5
B67: pooled | D67: =IF(COUNT(D55:D66)=0,"",AVERAGE(D55:D66)) -> 3128.833333 | G67: =IF(COUNT(G55:G66)=0,"",AVERAGE(G55:G66)) -> 912.1931391 | H67: =IF(COUNT(H55:H66)=0,"",AVERAGE(H55:H66)) -> 4683.786184 | I67: 2216.640194 | J67: 1554.952851

Sheet Q3
B52: ='data entry'!A12 -> Q3 | C52: ='data entry'!B12 -> What will be the population size 30 years hence under Action 1 - Ex-situ ?
C54: lower | D54: best | E54: upper | F54: confidence (%) | G54: 90% lower | H54: 90% upper | I54: lower bound | J54: upper bound
B55: =participants!D10 -> Col M | C55: =IF('data entry'!C12="","",'data entry'!C12) -> 500 | D55: =IF('data entry'!D12="","",'data entry'!D12) -> 3550 | E55: =IF('data entry'!E12="","",'data entry'!E12) -> 5000 | F55: =IF('data entry'!F12="","",'data entry'!F12) -> 65 | G55: =IF(D55="","",MAX(0,((D55-((D55-C55)/F55)*90)))) -> 0 | H55: =IF(D55="","",((D55-((D55-E55)/F55)*90))) -> 5557.692308 | I55: =IF(D55="","",(D55-G55)) -> 3550 | J55: =IF(D55="","",(H55-D55)) -> 2007.692308
B56: =participants!D11 -> Mrs P | C56: =IF('data entry'!H12="","",'data entry'!H12) -> 1000 | D56: =IF('data entry'!I12="","",'data entry'!I12) -> 3500 | E56: =IF('data entry'!J12="","",'data entry'!J12) -> 4500 | F56: =IF('data entry'!K12="","",'data entry'!K12) -> 70 | G56: =IF(D56="","",MAX(0,((D56-((D56-C56)/F56)*90)))) -> 285.7142857 | H56: =IF(D56="","",((D56-((D56-E56)/F56)*90))) -> 4785.714286 | I56: =IF(D56="","",(D56-G56)) -> 3214.285714 | J56: =IF(D56="","",(H56-D56)) -> 1285.714286
B57: =participants!D12 -> Dr B | C57: =IF('data entry'!M12="","",'data entry'!M12) -> 1000 | D57: =IF('data entry'!N12="","",'data entry'!N12) -> 2500 | E57: =IF('data entry'!O12="","",'data entry'!O12) -> 5000 | F57: =IF('data entry'!P12="","",'data entry'!P12) -> 50 | G57: 0 | H57: 7000 | I57: 2500 | J57: 4500
B58: =participants!D13 -> Rev G | C58: =IF('data entry'!R12="","",'data entry'!R12) -> 2475 | D58: =IF('data entry'!S12="","",'data entry'!S12) -> 3850 | E58: =IF('data entry'!T12="","",'data entry'!T12) -> 4702 | F58: =IF('data entry'!U12="","",'data entry'!U12) -> 80 | G58: 2303.125 | H58: 4808.5 | I58: 1546.875 | J58: 958.5
B59: =participants!D14 -> Miss S | C59: =IF('data entry'!W12="","",'data entry'!W12) -> 864 | D59: =IF('data entry'!X12="","",'data entry'!X12) -> 3692.16 | E59: =IF('data entry'!Y12="","",'data entry'!Y12) -> 5760 | F59: =IF('data entry'!Z12="","",'data entry'!Z12) -> 75 | G59: 298.368 | H59: 6173.568 | I59: 3393.792 | J59: 2481.408
B60: =participants!D15 -> Prof P | C60: =IF('data entry'!AB12="","",'data entry'!AB12) -> 3500 | D60: =IF('data entry'!AC12="","",'data entry'!AC12) -> 3700 | E60: =IF('data entry'!AD12="","",'data entry'!AD12) -> 4000 | F60: =IF('data entry'!AE12="","",'data entry'!AE12) -> 50 | G60: 3340 | H60: 4240 | I60: 360 | J60: 540
B61: =participants!D16 -> Dr O | C61: =IF('data entry'!AG12="","",'data entry'!AG12) -> 2100 | D61: =IF('data entry'!AH12="","",'data entry'!AH12) -> 3100 | E61: =IF('data entry'!AI12="","",'data entry'!AI12) -> 4100 | F61: =IF('data entry'!AJ12="","",'data entry'!AJ12) -> 70 | G61: 1814.285714 | H61: 4385.714286 | I61: 1285.714286 | J61: 1285.714286
B62: =participants!D17 -> Mrs W | C62: =IF('data entry'!AL12="","",'data entry'!AL12) -> 600 | D62: =IF('data entry'!AM12="","",'data entry'!AM12) -> 2800 | E62: =IF('data entry'!AN12="","",'data entry'!AN12) -> 5000 | F62: =IF('data entry'!AO12="","",'data entry'!AO12) -> 80 | G62: 325 | H62: 5275 | I62: 2475 | J62: 2475
B63: =participants!D18 -> Sgt G | C63: =IF('data entry'!AQ12="","",'data entry'!AQ12) -> 900 | D63: =IF('data entry'!AR12="","",'data entry'!AR12) -> 3000 | E63: =IF('data entry'!AS12="","",'data entry'!AS12) -> 4000 | F63: =IF('data entry'!AT12="","",'data entry'!AT12) -> 50 | G63: 0 | H63: 4800 | I63: 3000 | J63: 1800
B64: =participants!D19 -> Mon B | C64: =IF('data entry'!AV12="","",'data entry'!AV12) -> 0 | D64: =IF('data entry'!AW12="","",'data entry'!AW12) -> 2100 | E64: =IF('data entry'!AX12="","",'data entry'!AX12) -> 4000 | F64: =IF('data entry'!AY12="","",'data entry'!AY12) -> 55 | G64: 0 | H64: 5209.090909 | I64: 2100 | J64: 3109.090909
B65: =participants!D20 -> Miss P | C65: =IF('data entry'!BA12="","",'data entry'!BA12) -> 1500 | D65: =IF('data entry'!BB12="","",'data entry'!BB12) -> 3500 | E65: =IF('data entry'!BC12="","",'data entry'!BC12) -> 5000 | F65: =IF('data entry'!BD12="","",'data entry'!BD12) -> 60 | G65: 500 | H65: 5750 | I65: 3000 | J65: 2250
B66: =participants!D21 -> Insp B | C66: =IF('data entry'!BF12="","",'data entry'!BF12) -> 3000 | D66: =IF('data entry'!BG12="","",'data entry'!BG12) -> 4000 | E66: =IF('data entry'!BH12="","",'data entry'!BH12) -> 5000 | F66: =IF('data entry'!BI12="","",'data entry'!BI12) -> 65 | G66: 2615.384615 | H66: 5384.615385 | I66: 1384.615385 | J66: 1384.615385
B67: pooled | D67: =IF(COUNT(D55:D66)=0,"",AVERAGE(D55:D66)) -> 3274.346667 | G67: =IF(COUNT(G55:G66)=0,"",AVERAGE(G55:G66)) -> 956.8231346 | H67: =IF(COUNT(H55:H66)=0,"",AVERAGE(H55:H66)) -> 5280.824598 | I67: 2317.523532 | J67: 2006.477931

Sheet Q4
B52: ='data entry'!A13 -> Q4 | C52: ='data entry'!B13 -> What will be the population size 30 years hence under Action 2 - Cat control plus ?
C54: lower | D54: best | E54: upper | F54: confidence (%) | G54: 90% lower | H54: 90% upper | I54: lower bound | J54: upper bound
B55: =participants!D10 -> Col M | C55: =IF('data entry'!C13="","",'data entry'!C13) -> 2500 | D55: =IF('data entry'!D13="","",'data entry'!D13) -> 3500 | E55: =IF('data entry'!E13="","",'data entry'!E13) -> 4500 | F55: =IF('data entry'!F13="","",'data entry'!F13) -> 70 | G55: =IF(D55="","",MAX(0,((D55-((D55-C55)/F55)*90)))) -> 2214.285714 | H55: =IF(D55="","",((D55-((D55-E55)/F55)*90))) -> 4785.714286 | I55: =IF(D55="","",(D55-G55)) -> 1285.714286 | J55: =IF(D55="","",(H55-D55)) -> 1285.714286
B56: =participants!D11 -> Mrs P | C56: =IF('data entry'!H13="","",'data entry'!H13) -> 800 | D56: =IF('data entry'!I13="","",'data entry'!I13) -> 2700 | E56: =IF('data entry'!J13="","",'data entry'!J13) -> 4400 | F56: =IF('data entry'!K13="","",'data entry'!K13) -> 80 | G56: =IF(D56="","",MAX(0,((D56-((D56-C56)/F56)*90)))) -> 562.5 | H56: =IF(D56="","",((D56-((D56-E56)/F56)*90))) -> 4612.5 | I56: =IF(D56="","",(D56-G56)) -> 2137.5 | J56: =IF(D56="","",(H56-D56)) -> 1912.5
B57: =participants!D12 -> Dr B | C57: =IF('data entry'!M13="","",'data entry'!M13) -> 950 | D57: =IF('data entry'!N13="","",'data entry'!N13) -> 3200 | E57: =IF('data entry'!O13="","",'data entry'!O13) -> 4000 | F57: =IF('data entry'!P13="","",'data entry'!P13) -> 60 | G57: 0 | H57: 4400 | I57: 3200 | J57: 1200
B58: =participants!D13 -> Rev G | C58: =IF('data entry'!R13="","",'data entry'!R13) -> 0 | D58: =IF('data entry'!S13="","",'data entry'!S13) -> 2500 | E58: =IF('data entry'!T13="","",'data entry'!T13) -> 4500 | F58: =IF('data entry'!U13="","",'data entry'!U13) -> 60 | G58: 0 | H58: 5500 | I58: 2500 | J58: 3000
B59: =participants!D14 -> Miss S | C59: =IF('data entry'!W13="","",'data entry'!W13) -> 1000 | D59: =IF('data entry'!X13="","",'data entry'!X13) -> 2500 | E59: =IF('data entry'!Y13="","",'data entry'!Y13) -> 3500 | F59: =IF('data entry'!Z13="","",'data entry'!Z13) -> 65 | G59: 423.0769231 | H59: 3884.615385 | I59: 2076.923077 | J59: 1384.615385
B60: =participants!D15 -> Prof P | C60: =IF('data entry'!AB13="","",'data entry'!AB13) -> 1000 | D60: =IF('data entry'!AC13="","",'data entry'!AC13) -> 2750 | E60: =IF('data entry'!AD13="","",'data entry'!AD13) -> 3000 | F60: =IF('data entry'!AE13="","",'data entry'!AE13) -> 65 | G60: 326.9230769 | H60: 3096.153846 | I60: 2423.076923 | J60: 346.1538462
B61: =participants!D16 -> Dr O | C61: =IF('data entry'!AG13="","",'data entry'!AG13) -> 500 | D61: =IF('data entry'!AH13="","",'data entry'!AH13) -> 3550 | E61: =IF('data entry'!AI13="","",'data entry'!AI13) -> 5000 | F61: =IF('data entry'!AJ13="","",'data entry'!AJ13) -> 65 | G61: 0 | H61: 5557.692308 | I61: 3550 | J61: 2007.692308
B62: =participants!D17 -> Mrs W | C62: =IF('data entry'!AL13="","",'data entry'!AL13) -> 1000 | D62: =IF('data entry'!AM13="","",'data entry'!AM13) -> 3500 | E62: =IF('data entry'!AN13="","",'data entry'!AN13) -> 4500 | F62: =IF('data entry'!AO13="","",'data entry'!AO13) -> 70 | G62: 285.7142857 | H62: 4785.714286 | I62: 3214.285714 | J62: 1285.714286
B63: =participants!D18 -> Sgt G | C63: =IF('data entry'!AQ13="","",'data entry'!AQ13) -> 1000 | D63: =IF('data entry'!AR13="","",'data entry'!AR13) -> 2500 | E63: =IF('data entry'!AS13="","",'data entry'!AS13) -> 5000 | F63: =IF('data entry'!AT13="","",'data entry'!AT13) -> 50 | G63: 0 | H63: 7000 | I63: 2500 | J63: 4500
B64: =participants!D19 -> Mon B | C64: =IF('data entry'!AV13="","",'data entry'!AV13) -> 2475 | D64: =IF('data entry'!AW13="","",'data entry'!AW13) -> 3850 | E64: =IF('data entry'!AX13="","",'data entry'!AX13) -> 4702 | F64: =IF('data entry'!AY13="","",'data entry'!AY13) -> 80 | G64: 2303.125 | H64: 4808.5 | I64: 1546.875 | J64: 958.5
B65: =participants!D20 -> Miss P | C65: =IF('data entry'!BA13="","",'data entry'!BA13) -> 864 | D65: =IF('data entry'!BB13="","",'data entry'!BB13) -> 3692.16 | E65: =IF('data entry'!BC13="","",'data entry'!BC13) -> 5760 | F65: =IF('data entry'!BD13="","",'data entry'!BD13) -> 75 | G65: 298.368 | H65: 6173.568 | I65: 3393.792 | J65: 2481.408
B66: =participants!D21 -> Insp B | C66: =IF('data entry'!BF13="","",'data entry'!BF13) -> 3500 | D66: =IF('data entry'!BG13="","",'data entry'!BG13) -> 3700 | E66: =IF('data entry'!BH13="","",'data entry'!BH13) -> 4000 | F66: =IF('data entry'!BI13="","",'data entry'!BI13) -> 50 | G66: 3340 | H66: 4240 | I66: 360 | J66: 540
B67: pooled | D67: =IF(COUNT(D55:D66)=0,"",AVERAGE(D55:D66)) -> 3161.846667 | G67: =IF(COUNT(G55:G66)=0,"",AVERAGE(G55:G66)) -> 812.83275 | H67: =IF(COUNT(H55:H66)=0,"",AVERAGE(H55:H66)) -> 4903.704842 | I67: 2349.013917 | J67: 1741.858176

Sheet Q5
B52: ='data entry'!A14 -> Q5 | C52: ='data entry'!B14 -> What will be the population size 30 years hence under Action 3 - Yellow crazy ant control plus ?
C54: lower | D54: best | E54: upper | F54: confidence (%) | G54: 90% lower | H54: 90% upper | I54: lower bound | J54: upper bound
B55: =participants!D10 -> Col M | C55: =IF('data entry'!C14="","",'data entry'!C14) -> 2050 | D55: =IF('data entry'!D14="","",'data entry'!D14) -> 3050 | E55: =IF('data entry'!E14="","",'data entry'!E14) -> 4050 | F55: =IF('data entry'!F14="","",'data entry'!F14) -> 70 | G55: =IF(D55="","",MAX(0,((D55-((D55-C55)/F55)*90)))) -> 1764.285714 | H55: =IF(D55="","",((D55-((D55-E55)/F55)*90))) -> 4335.714286 | I55: =IF(D55="","",(D55-G55)) -> 1285.714286 | J55: =IF(D55="","",(H55-D55)) -> 1285.714286
B56: =participants!D11 -> Mrs P | C56: =IF('data entry'!H14="","",'data entry'!H14) -> 500 | D56: =IF('data entry'!I14="","",'data entry'!I14) -> 2550 | E56: =IF('data entry'!J14="","",'data entry'!J14) -> 4350 | F56: =IF('data entry'!K14="","",'data entry'!K14) -> 80 | G56: =IF(D56="","",MAX(0,((D56-((D56-C56)/F56)*90)))) -> 243.75 | H56: =IF(D56="","",((D56-((D56-E56)/F56)*90))) -> 4575 | I56: =IF(D56="","",(D56-G56)) -> 2306.25 | J56: =IF(D56="","",(H56-D56)) -> 2025
B57: =participants!D12 -> Dr B | C57: =IF('data entry'!M14="","",'data entry'!M14) -> 910 | D57: =IF('data entry'!N14="","",'data entry'!N14) -> 3100 | E57: =IF('data entry'!O14="","",'data entry'!O14) -> 4000 | F57: =IF('data entry'!P14="","",'data entry'!P14) -> 60 | G57: 0 | H57: 4450 | I57: 3100 | J57: 1350
B58: =participants!D13 -> Rev G | C58: =IF('data entry'!R14="","",'data entry'!R14) -> 0 | D58: =IF('data entry'!S14="","",'data entry'!S14) -> 2100 | E58: =IF('data entry'!T14="","",'data entry'!T14) -> 4200 | F58: =IF('data entry'!U14="","",'data entry'!U14) -> 60 | G58: 0 | H58: 5250 | I58: 2100 | J58: 3150
B59: =participants!D14 -> Miss S | C59: =IF('data entry'!W14="","",'data entry'!W14) -> 800 | D59: =IF('data entry'!X14="","",'data entry'!X14) -> 2200 | E59: =IF('data entry'!Y14="","",'data entry'!Y14) -> 3500 | F59: =IF('data entry'!Z14="","",'data entry'!Z14) -> 60 | G59: 100 | H59: 4150 | I59: 2100 | J59: 1950
B60: =participants!D15 -> Prof P | C60: =IF('data entry'!AB14="","",'data entry'!AB14) -> 1500 | D60: =IF('data entry'!AC14="","",'data entry'!AC14) -> 3000 | E60: =IF('data entry'!AD14="","",'data entry'!AD14) -> 3500 | F60: =IF('data entry'!AE14="","",'data entry'!AE14) -> 65 | G60: 923.0769231 | H60: 3692.307692 | I60: 2076.923077 | J60: 692.3076923
B61: =participants!D16 -> Dr O | C61: =IF('data entry'!AG14="","",'data entry'!AG14) -> 500 | D61: =IF('data entry'!AH14="","",'data entry'!AH14) -> 3650 | E61: =IF('data entry'!AI14="","",'data entry'!AI14) -> 5000 | F61: =IF('data entry'!AJ14="","",'data entry'!AJ14) -> 65 | G61: 0 | H61: 5519.230769 | I61: 3650 | J61: 1869.230769
B62: =participants!D17 -> Mrs W | C62: =IF('data entry'!AL14="","",'data entry'!AL14) -> 1000 | D62: =IF('data entry'!AM14="","",'data entry'!AM14) -> 3000 | E62: =IF('data entry'!AN14="","",'data entry'!AN14) -> 4500 | F62: =IF('data entry'!AO14="","",'data entry'!AO14) -> 60 | G62: 0 | H62: 5250 | I62: 3000 | J62: 2250
B63: =participants!D18 -> Sgt G | C63: =IF('data entry'!AQ14="","",'data entry'!AQ14) -> 1000 | D63: =IF('data entry'!AR14="","",'data entry'!AR14) -> 2500 | E63: =IF('data entry'!AS14="","",'data entry'!AS14) -> 5000 | F63: =IF('data entry'!AT14="","",'data entry'!AT14) -> 50 | G63: 0 | H63: 7000 | I63: 2500 | J63: 4500
B64: =participants!D19 -> Mon B | C64: =IF('data entry'!AV14="","",'data entry'!AV14) -> 2250 | D64: =IF('data entry'!AW14="","",'data entry'!AW14) -> 3500 | E64: =IF('data entry'!AX14="","",'data entry'!AX14) -> 4000 | F64: =IF('data entry'!AY14="","",'data entry'!AY14) -> 80 | G64: 2093.75 | H64: 4062.5 | I64: 1406.25 | J64: 562.5
B65: =participants!D20 -> Miss P | C65: =IF('data entry'!BA14="","",'data entry'!BA14) -> 756 | D65: =IF('data entry'!BB14="","",'data entry'!BB14) -> 3230.64 | E65: =IF('data entry'!BC14="","",'data entry'!BC14) -> 5040 | F65: =IF('data entry'!BD14="","",'data entry'!BD14) -> 70 | G65: 48.96 | H65: 5556.96 | I65: 3181.68 | J65: 2326.32
B66: =participants!D21 -> Insp B | C66: =IF('data entry'!BF14="","",'data entry'!BF14) -> 3500 | D66: =IF('data entry'!BG14="","",'data entry'!BG14) -> 3700 | E66: =IF('data entry'!BH14="","",'data entry'!BH14) -> 4000 | F66: =IF('data entry'!BI14="","",'data entry'!BI14) -> 50 | G66: 3340 | H66: 4240 | I66: 360 | J66: 540
B67: pooled | D67: =IF(COUNT(D55:D66)=0,"",AVERAGE(D55:D66)) -> 2965.053333 | G67: =IF(COUNT(G55:G66)=0,"",AVERAGE(G55:G66)) -> 709.4852198 | H67: =IF(COUNT(H55:H66)=0,"",AVERAGE(H55:H66)) -> 4840.142729 | I67: 2255.568114 | J67: 1875.089396

Sheet Q6
B52: ='data entry'!A15 -> Q6 | C52: ='data entry'!B15 -> What will be the population size 30 years hence under Action 4 - Forest regeneration plus A ?
C54: lower | D54: best | E54: upper | F54: confidence (%) | G54: 90% lower | H54: 90% upper | I54: lower bound | J54: upper bound
B55: =participants!D10 -> Col M | C55: =IF('data entry'!C15="","",'data entry'!C15) -> 2080 | D55: =IF('data entry'!D15="","",'data entry'!D15) -> 3080 | E55: =IF('data entry'!E15="","",'data entry'!E15) -> 4080 | F55: =IF('data entry'!F15="","",'data entry'!F15) -> 70 | G55: =IF(D55="","",MAX(0,((D55-((D55-C55)/F55)*90)))) -> 1794.285714 | H55: =IF(D55="","",((D55-((D55-E55)/F55)*90))) -> 4365.714286 | I55: =IF(D55="","",(D55-G55)) -> 1285.714286 | J55: =IF(D55="","",(H55-D55)) -> 1285.714286
B56: =participants!D11 -> Mrs P | C56: =IF('data entry'!H15="","",'data entry'!H15) -> 750 | D56: =IF('data entry'!I15="","",'data entry'!I15) -> 2600 | E56: =IF('data entry'!J15="","",'data entry'!J15) -> 4600 | F56: =IF('data entry'!K15="","",'data entry'!K15) -> 80 | G56: =IF(D56="","",MAX(0,((D56-((D56-C56)/F56)*90)))) -> 518.75 | H56: =IF(D56="","",((D56-((D56-E56)/F56)*90))) -> 4850 | I56: =IF(D56="","",(D56-G56)) -> 2081.25 | J56: =IF(D56="","",(H56-D56)) -> 2250
B57: =participants!D12 -> Dr B | C57: =IF('data entry'!M15="","",'data entry'!M15) -> 900 | D57: =IF('data entry'!N15="","",'data entry'!N15) -> 3000 | E57: =IF('data entry'!O15="","",'data entry'!O15) -> 3500 | F57: =IF('data entry'!P15="","",'data entry'!P15) -> 60 | G57: 0 | H57: 3750 | I57: 3000 | J57: 750
B58: =participants!D13 -> Rev G | C58: =IF('data entry'!R15="","",'data entry'!R15) -> 0 | D58: =IF('data entry'!S15="","",'data entry'!S15) -> 2600 | E58: =IF('data entry'!T15="","",'data entry'!T15) -> 5000 | F58: =IF('data entry'!U15="","",'data entry'!U15) -> 60 | G58: 0 | H58: 6200 | I58: 2600 | J58: 3600
B59: =participants!D14 -> Miss S | C59: =IF('data entry'!W15="","",'data entry'!W15) -> 1500 | D59: =IF('data entry'!X15="","",'data entry'!X15) -> 3500 | E59: =IF('data entry'!Y15="","",'data entry'!Y15) -> 4500 | F59: =IF('data entry'!Z15="","",'data entry'!Z15) -> 60 | G59: 500 | H59: 5000 | I59: 3000 | J59: 1500
B60: =participants!D15 -> Prof P | C60: =IF('data entry'!AB15="","",'data entry'!AB15) -> 2000 | D60: =IF('data entry'!AC15="","",'data entry'!AC15) -> 3500 | E60: =IF('data entry'!AD15="","",'data entry'!AD15) -> 4000 | F60: =IF('data entry'!AE15="","",'data entry'!AE15) -> 65 | G60: 1423.076923 | H60: 4192.307692 | I60: 2076.923077 | J60: 692.3076923
B61: =participants!D16 -> Dr O | C61: =IF('data entry'!AG15="","",'data entry'!AG15) -> 600 | D61: =IF('data entry'!AH15="","",'data entry'!AH15) -> 3900 | E61: =IF('data entry'!AI15="","",'data entry'!AI15) -> 5000 | F61: =IF('data entry'!AJ15="","",'data entry'!AJ15) -> 70 | G61: 0 | H61: 5314.285714 | I61: 3900 | J61: 1414.285714
B62: =participants!D17 -> Mrs W | C62: =IF('data entry'!AL15="","",'data entry'!AL15) -> 1000 | D62: =IF('data entry'!AM15="","",'data entry'!AM15) -> 2500 | E62: =IF('data entry'!AN15="","",'data entry'!AN15) -> 4000 | F62: =IF('data entry'!AO15="","",'data entry'!AO15) -> 70 | G62: 571.4285714 | H62: 4428.571429 | I62: 1928.571429 | J62: 1928.571429
B63: =participants!D18 -> Sgt G | C63: =IF('data entry'!AQ15="","",'data entry'!AQ15) -> 1000 | D63: =IF('data entry'!AR15="","",'data entry'!AR15) -> 2500 | E63: =IF('data entry'!AS15="","",'data entry'!AS15) -> 5000 | F63: =IF('data entry'!AT15="","",'data entry'!AT15) -> 60 | G63: 250 | H63: 6250 | I63: 2250 | J63: 3750
B64: =participants!D19 -> Mon B | C64: =IF('data entry'!AV15="","",'data entry'!AV15) -> 2280 | D64: =IF('data entry'!AW15="","",'data entry'!AW15) -> 3530 | E64: =IF('data entry'!AX15="","",'data entry'!AX15) -> 4205 | F64: =IF('data entry'!AY15="","",'data entry'!AY15) -> 80 | G64: 2123.75 | H64: 4289.375 | I64: 1406.25 | J64: 759.375
B65: =participants!D20 -> Miss P | C65: =IF('data entry'!BA15="","",'data entry'!BA15) -> 765 | D65: =IF('data entry'!BB15="","",'data entry'!BB15) -> 3121.8 | E65: =IF('data entry'!BC15="","",'data entry'!BC15) -> 4845 | F65: =IF('data entry'!BD15="","",'data entry'!BD15) -> 70 | G65: 91.62857143 | H65: 5337.342857 | I65: 3030.171429 | J65: 2215.542857
B66: =participants!D21 -> Insp B | C66: =IF('data entry'!BF15="","",'data entry'!BF15) -> 3500 | D66: =IF('data entry'!BG15="","",'data entry'!BG15) -> 3700 | E66: =IF('data entry'!BH15="","",'data entry'!BH15) -> 4000 | F66: =IF('data entry'!BI15="","",'data entry'!BI15) -> 50 | G66: 3340 | H66: 4240 | I66: 360 | J66: 540
B67: pooled | D67: =IF(COUNT(D55:D66)=0,"",AVERAGE(D55:D66)) -> 3127.65 | G67: =IF(COUNT(G55:G66)=0,"",AVERAGE(G55:G66)) -> 884.4099817 | H67: =IF(COUNT(H55:H66)=0,"",AVERAGE(H55:H66)) -> 4851.466415 | I67: 2243.240018 | J67: 1723.816415

Sheet Q7
B52: ='data entry'!A16 -> Q7 | C52: ='data entry'!B16 -> What will be the population size 30 years hence under Action 5 - Forest regeneration plus B ?
C54: lower | D54: best | E54: upper | F54: confidence (%) | G54: 90% lower | H54: 90% upper | I54: lower bound | J54: upper bound
B55: =participants!D10 -> Col M | C55: =IF('data entry'!C16="","",'data entry'!C16) -> 2125 | D55: =IF('data entry'!D16="","",'data entry'!D16) -> 3125 | E55: =IF('data entry'!E16="","",'data entry'!E16) -> 4125 | F55: =IF('data entry'!F16="","",'data entry'!F16) -> 70 | G55: =IF(D55="","",MAX(0,((D55-((D55-C55)/F55)*90)))) -> 1839.285714 | H55: =IF(D55="","",((D55-((D55-E55)/F55)*90))) -> 4410.714286 | I55: =IF(D55="","",(D55-G55)) -> 1285.714286 | J55: =IF(D55="","",(H55-D55)) -> 1285.714286
B56: =participants!D11 -> Mrs P | C56: =IF('data entry'!H16="","",'data entry'!H16) -> 1000 | D56: =IF('data entry'!I16="","",'data entry'!I16) -> 3000 | E56: =IF('data entry'!J16="","",'data entry'!J16) -> 4800 | F56: =IF('data entry'!K16="","",'data entry'!K16) -> 80 | G56: =IF(D56="","",MAX(0,((D56-((D56-C56)/F56)*90)))) -> 750 | H56: =IF(D56="","",((D56-((D56-E56)/F56)*90))) -> 5025 | I56: =IF(D56="","",(D56-G56)) -> 2250 | J56: =IF(D56="","",(H56-D56)) -> 2025
B57: =participants!D12 -> Dr B | C57: =IF('data entry'!M16="","",'data entry'!M16) -> 950 | D57: =IF('data entry'!N16="","",'data entry'!N16) -> 3200 | E57: =IF('data entry'!O16="","",'data entry'!O16) -> 4000 | F57: =IF('data entry'!P16="","",'data entry'!P16) -> 60 | G57: 0 | H57: 4400 | I57: 3200 | J57: 1200
B58: =participants!D13 -> Rev G | C58: =IF('data entry'!R16="","",'data entry'!R16) -> 0 | D58: =IF('data entry'!S16="","",'data entry'!S16) -> 3100 | E58: =IF('data entry'!T16="","",'data entry'!T16) -> 6000 | F58: =IF('data entry'!U16="","",'data entry'!U16) -> 60 | G58: 0 | H58: 7450 | I58: 3100 | J58: 4350
B59: =participants!D14 -> Miss S | C59: =IF('data entry'!W16="","",'data entry'!W16) -> 2000 | D59: =IF('data entry'!X16="","",'data entry'!X16) -> 4500 | E59: =IF('data entry'!Y16="","",'data entry'!Y16) -> 5500 | F59: =IF('data entry'!Z16="","",'data entry'!Z16) -> 70 | G59: 1285.714286 | H59: 5785.714286 | I59: 3214.285714 | J59: 1285.714286
B60: =participants!D15 -> Prof P | C60: =IF('data entry'!AB16="","",'data entry'!AB16) -> 2500 | D60: =IF('data entry'!AC16="","",'data entry'!AC16) -> 4000 | E60: =IF('data entry'!AD16="","",'data entry'!AD16) -> 4500 | F60: =IF('data entry'!AE16="","",'data entry'!AE16) -> 65 | G60: 1923.076923 | H60: 4692.307692 | I60: 2076.923077 | J60: 692.3076923
B61: =participants!D16 -> Dr O | C61: =IF('data entry'!AG16="","",'data entry'!AG16) -> 750 | D61: =IF('data entry'!AH16="","",'data entry'!AH16) -> 4100 | E61: =IF('data entry'!AI16="","",'data entry'!AI16) -> 6000 | F61: =IF('data entry'!AJ16="","",'data entry'!AJ16) -> 70 | G61: 0 | H61: 6542.857143 | I61: 4100 | J61: 2442.857143
B62: =participants!D17 -> Mrs W | C62: =IF('data entry'!AL16="","",'data entry'!AL16) -> 1000 | D62: =IF('data entry'!AM16="","",'data entry'!AM16) -> 3000 | E62: =IF('data entry'!AN16="","",'data entry'!AN16) -> 5000 | F62: =IF('data entry'!AO16="","",'data entry'!AO16) -> 70 | G62: 428.5714286 | H62: 5571.428571 | I62: 2571.428571 | J62: 2571.428571
B63: =participants!D18 -> Sgt G | C63: =IF('data entry'!AQ16="","",'data entry'!AQ16) -> 1500 | D63: =IF('data entry'!AR16="","",'data entry'!AR16) -> 3000 | E63: =IF('data entry'!AS16="","",'data entry'!AS16) -> 5000 | F63: =IF('data entry'!AT16="","",'data entry'!AT16) -> 60 | G63: 750 | H63: 6000 | I63: 2250 | J63: 3000
B64: =participants!D19 -> Mon B | C64: =IF('data entry'!AV16="","",'data entry'!AV16) -> 2340 | D64: =IF('data entry'!AW16="","",'data entry'!AW16) -> 3590 | E64: =IF('data entry'!AX16="","",'data entry'!AX16) -> 4265 | F64: =IF('data entry'!AY16="","",'data entry'!AY16) -> 80 | G64: 2183.75 | H64: 4349.375 | I64: 1406.25 | J64: 759.375
B65: =participants!D20 -> Miss P | C65: =IF('data entry'!BA16="","",'data entry'!BA16) -> 855 | D65: =IF('data entry'!BB16="","",'data entry'!BB16) -> 3211.8 | E65: =IF('data entry'!BC16="","",'data entry'!BC16) -> 4935 | F65: =IF('data entry'!BD16="","",'data entry'!BD16) -> 70 | G65: 181.6285714 | H65: 5427.342857 | I65: 3030.171429 | J65: 2215.542857
B66: =participants!D21 -> Insp B | C66: =IF('data entry'!BF16="","",'data entry'!BF16) -> 3500 | D66: =IF('data entry'!BG16="","",'data entry'!BG16) -> 3700 | E66: =IF('data entry'!BH16="","",'data entry'!BH16) -> 4000 | F66: =IF('data entry'!BI16="","",'data entry'!BI16) -> 50 | G66: 3340 | H66: 4240 | I66: 360 | J66: 540
B67: pooled | D67: =IF(COUNT(D55:D66)=0,"",AVERAGE(D55:D66)) -> 3460.566667 | G67: =IF(COUNT(G55:G66)=0,"",AVERAGE(G55:G66)) -> 1056.835577 | H67: =IF(COUNT(H55:H66)=0,"",AVERAGE(H55:H66)) -> 5324.561653 | I67: 2403.73109 | J67: 1863.994986

Sheet Q8
B52: ='data entry'!A17 -> Q8 | C52: ='data entry'!B17 -> What will be the population size 30 years hence under Action 6 - Expand conservation estate A ?
C54: lower | D54: best | E54: upper | F54: confidence (%) | G54: 90% lower | H54: 90% upper | I54: lower bound | J54: upper bound
B55: =participants!D10 -> Col M | C55: =IF('data entry'!C17="","",'data entry'!C17) -> 2200 | D55: =IF('data entry'!D17="","",'data entry'!D17) -> 3200 | E55: =IF('data entry'!E17="","",'data entry'!E17) -> 4200 | F55: =IF('data entry'!F17="","",'data entry'!F17) -> 70 | G55: =IF(D55="","",MAX(0,((D55-((D55-C55)/F55)*90)))) -> 1914.285714 | H55: =IF(D55="","",((D55-((D55-E55)/F55)*90))) -> 4485.714286 | I55: =IF(D55="","",(D55-G55)) -> 1285.714286 | J55: =IF(D55="","",(H55-D55)) -> 1285.714286
B56: =participants!D11 -> Mrs P | C56: =IF('data entry'!H17="","",'data entry'!H17) -> 1200 | D56: =IF('data entry'!I17="","",'data entry'!I17) -> 3300 | E56: =IF('data entry'!J17="","",'data entry'!J17) -> 5000 | F56: =IF('data entry'!K17="","",'data entry'!K17) -> 80 | G56: =IF(D56="","",MAX(0,((D56-((D56-C56)/F56)*90)))) -> 937.5 | H56: =IF(D56="","",((D56-((D56-E56)/F56)*90))) -> 5212.5 | I56: =IF(D56="","",(D56-G56)) -> 2362.5 | J56: =IF(D56="","",(H56-D56)) -> 1912.5
B57: =participants!D12 -> Dr B | C57: =IF('data entry'!M17="","",'data entry'!M17) -> 900 | D57: =IF('data entry'!N17="","",'data entry'!N17) -> 3400 | E57: =IF('data entry'!O17="","",'data entry'!O17) -> 4000 | F57: =IF('data entry'!P17="","",'data entry'!P17) -> 70 | G57: 185.7142857 | H57: 4171.428571 | I57: 3214.285714 | J57: 771.4285714
B58: =participants!D13 -> Rev G | C58: =IF('data entry'!R17="","",'data entry'!R17) -> 0 | D58: =IF('data entry'!S17="","",'data entry'!S17) -> 3500 | E58: =IF('data entry'!T17="","",'data entry'!T17) -> 6000 | F58: =IF('data entry'!U17="","",'data entry'!U17) -> 60 | G58: 0 | H58: 7250 | I58: 3500 | J58: 3750
B59: =participants!D14 -> Miss S | C59: =IF('data entry'!W17="","",'data entry'!W17) -> 700 | D59: =IF('data entry'!X17="","",'data entry'!X17) -> 2500 | E59: =IF('data entry'!Y17="","",'data entry'!Y17) -> 3200 | F59: =IF('data entry'!Z17="","",'data entry'!Z17) -> 60 | G59: 0 | H59: 3550 | I59: 2500 | J59: 1050
B60: =participants!D15 -> Prof P | C60: =IF('data entry'!AB17="","",'data entry'!AB17) -> 3000 | D60: =IF('data entry'!AC17="","",'data entry'!AC17) -> 4000 | E60: =IF('data entry'!AD17="","",'data entry'!AD17) -> 5000 | F60: =IF('data entry'!AE17="","",'data entry'!AE17) -> 65 | G60: 2615.384615 | H60: 5384.615385 | I60: 1384.615385 | J60: 1384.615385
B61: =participants!D16 -> Dr O | C61: =IF('data entry'!AG17="","",'data entry'!AG17) -> 500 | D61: =IF('data entry'!AH17="","",'data entry'!AH17) -> 3600 | E61: =IF('data entry'!AI17="","",'data entry'!AI17) -> 5000 | F61: =IF('data entry'!AJ17="","",'data entry'!AJ17) -> 55 | G61: 0 | H61: 5890.909091 | I61: 3600 | J61: 2290.909091
B62: =participants!D17 -> Mrs W | C62: =IF('data entry'!AL17="","",'data entry'!AL17) -> 2000 | D62: =IF('data entry'!AM17="","",'data entry'!AM17) -> 4000 | E62: =IF('data entry'!AN17="","",'data entry'!AN17) -> 5000 | F62: =IF('data entry'!AO17="","",'data entry'!AO17) -> 80 | G62: 1750 | H62: 5125 | I62: 2250 | J62: 1125
B63: =participants!D18 -> Sgt G | C63: =IF('data entry'!AQ17="","",'data entry'!AQ17) -> 1500 | D63: =IF('data entry'!AR17="","",'data entry'!AR17) -> 3000 | E63: =IF('data entry'!AS17="","",'data entry'!AS17) -> 5000 | F63: =IF('data entry'!AT17="","",'data entry'!AT17) -> 70 | G63: 1071.428571 | H63: 5571.428571 | I63: 1928.571429 | J63: 2571.428571
B64: =participants!D19 -> Mon B | C64: =IF('data entry'!AV17="","",'data entry'!AV17) -> 2295 | D64: =IF('data entry'!AW17="","",'data entry'!AW17) -> 3570 | E64: =IF('data entry'!AX17="","",'data entry'!AX17) -> 4361 | F64: =IF('data entry'!AY17="","",'data entry'!AY17) -> 80 | G64: 2135.625 | H64: 4459.875 | I64: 1434.375 | J64: 889.875
B65: =participants!D20 -> Miss P | C65: =IF('data entry'!BA17="","",'data entry'!BA17) -> 1145 | D65: =IF('data entry'!BB17="","",'data entry'!BB17) -> 3501.8 | E65: =IF('data entry'!BC17="","",'data entry'!BC17) -> 5225 | F65: =IF('data entry'!BD17="","",'data entry'!BD17) -> 70 | G65: 471.6285714 | H65: 5717.342857 | I65: 3030.171429 | J65: 2215.542857
B66: =participants!D21 -> Insp B | C66: =IF('data entry'!BF17="","",'data entry'!BF17) -> 3500 | D66: =IF('data entry'!BG17="","",'data entry'!BG17) -> 3700 | E66: =IF('data entry'!BH17="","",'data entry'!BH17) -> 4000 | F66: =IF('data entry'!BI17="","",'data entry'!BI17) -> 50 | G66: 3340 | H66: 4240 | I66: 360 | J66: 540
B67: pooled | D67: =IF(COUNT(D55:D66)=0,"",AVERAGE(D55:D66)) -> 3439.316667 | G67: =IF(COUNT(G55:G66)=0,"",AVERAGE(G55:G66)) -> 1201.79723 | H67: =IF(COUNT(H55:H66)=0,"",AVERAGE(H55:H66)) -> 5088.23448 | I67: 2237.519437 | J67: 1648.917813

Sheet Q9
B52: ='data entry'!A18 -> Q9 | C52: ='data entry'!B18 -> What will be the population size 30 years hence under Action 7 - Expand conservation estate B ?
C54: lower | D54: best | E54: upper | F54: confidence (%) | G54: 90% lower | H54: 90% upper | I54: lower bound | J54: upper bound
B55: =participants!D10 -> Col M | C55: =IF('data entry'!C18="","",'data entry'!C18) -> 2400 | D55: =IF('data entry'!D18="","",'data entry'!D18) -> 3400 | E55: =IF('data entry'!E18="","",'data entry'!E18) -> 4400 | F55: =IF('data entry'!F18="","",'data entry'!F18) -> 70 | G55: =IF(D55="","",MAX(0,((D55-((D55-C55)/F55)*90)))) -> 2114.285714 | H55: =IF(D55="","",((D55-((D55-E55)/F55)*90))) -> 4685.714286 | I55: =IF(D55="","",(D55-G55)) -> 1285.714286 | J55: =IF(D55="","",(H55-D55)) -> 1285.714286
B56: =participants!D11 -> Mrs P | C56: =IF('data entry'!H18="","",'data entry'!H18) -> 1500 | D56: =IF('data entry'!I18="","",'data entry'!I18) -> 3600 | E56: =IF('data entry'!J18="","",'data entry'!J18) -> 5300 | F56: =IF('data entry'!K18="","",'data entry'!K18) -> 80 | G56: =IF(D56="","",MAX(0,((D56-((D56-C56)/F56)*90)))) -> 1237.5 | H56: =IF(D56="","",((D56-((D56-E56)/F56)*90))) -> 5512.5 | I56: =IF(D56="","",(D56-G56)) -> 2362.5 | J56: =IF(D56="","",(H56-D56)) -> 1912.5
B57: =participants!D12 -> Dr B | C57: =IF('data entry'!M18="","",'data entry'!M18) -> 1100 | D57: =IF('data entry'!N18="","",'data entry'!N18) -> 3700 | E57: =IF('data entry'!O18="","",'data entry'!O18) -> 5000 | F57: =IF('data entry'!P18="","",'data entry'!P18) -> 70 | G57: 357.1428571 | H57: 5371.428571 | I57: 3342.857143 | J57: 1671.428571
B58: =participants!D13 -> Rev G | C58: =IF('data entry'!R18="","",'data entry'!R18) -> 0 | D58: =IF('data entry'!S18="","",'data entry'!S18) -> 4000 | E58: =IF('data entry'!T18="","",'data entry'!T18) -> 6000 | F58: =IF('data entry'!U18="","",'data entry'!U18) -> 60 | G58: 0 | H58: 7000 | I58: 4000 | J58: 3000
B59: =participants!D14 -> Miss S | C59: =IF('data entry'!W18="","",'data entry'!W18) -> 1000 | D59: =IF('data entry'!X18="","",'data entry'!X18) -> 3100 | E59: =IF('data entry'!Y18="","",'data entry'!Y18) -> 3600 | F59: =IF('data entry'!Z18="","",'data entry'!Z18) -> 60 | G59: 0 | H59: 3850 | I59: 3100 | J59: 750
B60: =participants!D15 -> Prof P | C60: =IF('data entry'!AB18="","",'data entry'!AB18) -> 3500 | D60: =IF('data entry'!AC18="","",'data entry'!AC18) -> 4500 | E60: =IF('data entry'!AD18="","",'data entry'!AD18) -> 6000 | F60: =IF('data entry'!AE18="","",'data entry'!AE18) -> 65 | G60: 3115.384615 | H60: 6576.923077 | I60: 1384.615385 | J60: 2076.923077
B61: =participants!D16 -> Dr O | C61: =IF('data entry'!AG18="","",'data entry'!AG18) -> 750 | D61: =IF('data entry'!AH18="","",'data entry'!AH18) -> 3800 | E61: =IF('data entry'!AI18="","",'data entry'!AI18) -> 5000 | F61: =IF('data entry'!AJ18="","",'data entry'!AJ18) -> 55 | G61: 0 | H61: 5763.636364 | I61: 3800 | J61: 1963.636364
B62: =participants!D17 -> Mrs W | C62: =IF('data entry'!AL18="","",'data entry'!AL18) -> 2000 | D62: =IF('data entry'!AM18="","",'data entry'!AM18) -> 4000 | E62: =IF('data entry'!AN18="","",'data entry'!AN18) -> 5000 | F62: =IF('data entry'!AO18="","",'data entry'!AO18) -> 80 | G62: 1750 | H62: 5125 | I62: 2250 | J62: 1125
B63: =participants!D18 -> Sgt G | C63: =IF('data entry'!AQ18="","",'data entry'!AQ18) -> 1500 | D63: =IF('data entry'!AR18="","",'data entry'!AR18) -> 3000 | E63: =IF('data entry'!AS18="","",'data entry'!AS18) -> 5000 | F63: =IF('data entry'!AT18="","",'data entry'!AT18) -> 70 | G63: 1071.428571 | H63: 5571.428571 | I63: 1928.571429 | J63: 2571.428571
B64: =participants!D19 -> Mon B | C64: =IF('data entry'!AV18="","",'data entry'!AV18) -> 2318 | D64: =IF('data entry'!AW18="","",'data entry'!AW18) -> 3605 | E64: =IF('data entry'!AX18="","",'data entry'!AX18) -> 4403 | F64: =IF('data entry'!AY18="","",'data entry'!AY18) -> 80 | G64: 2157.125 | H64: 4502.75 | I64: 1447.875 | J64: 897.75
B65: =participants!D20 -> Miss P | C65: =IF('data entry'!BA18="","",'data entry'!BA18) -> 1238.5 | D65: =IF('data entry'!BB18="","",'data entry'!BB18) -> 3595.3 | E65: =IF('data entry'!BC18="","",'data entry'!BC18) -> 5318.5 | F65: =IF('data entry'!BD18="","",'data entry'!BD18) -> 70 | G65: 565.1285714 | H65: 5810.842857 | I65: 3030.171429 | J65: 2215.542857
B66: =participants!D21 -> Insp B | C66: =IF('data entry'!BF18="","",'data entry'!BF18) -> 3500 | D66: =IF('data entry'!BG18="","",'data entry'!BG18) -> 3700 | E66: =IF('data entry'!BH18="","",'data entry'!BH18) -> 4000 | F66: =IF('data entry'!BI18="","",'data entry'!BI18) -> 50 | G66: 3340 | H66: 4240 | I66: 360 | J66: 540
B67: pooled | D67: =IF(COUNT(D55:D66)=0,"",AVERAGE(D55:D66)) -> 3666.691667 | G67: =IF(COUNT(G55:G66)=0,"",AVERAGE(G55:G66)) -> 1308.999611 | H67: =IF(COUNT(H55:H66)=0,"",AVERAGE(H55:H66)) -> 5334.185311 | I67: 2357.692056 | J67: 1667.493644

Sheet Q10
B52: ='data entry'!A19 -> Q10 | C52: ='data entry'!B19 -> What will be the population size 30 years hence under Action 8 - Cadmium control ?
C54: lower | D54: best | E54: upper | F54: confidence (%) | G54: 90% lower | H54: 90% upper | I54: lower bound | J54: upper bound
B55: =participants!D10 -> Col M | C55: =IF('data entry'!C19="","",'data entry'!C19) -> 2100 | D55: =IF('data entry'!D19="","",'data entry'!D19) -> 3100 | E55: =IF('data entry'!E19="","",'data entry'!E19) -> 4100 | F55: =IF('data entry'!F19="","",'data entry'!F19) -> 70 | G55: =IF(D55="","",MAX(0,((D55-((D55-C55)/F55)*90)))) -> 1814.285714 | H55: =IF(D55="","",((D55-((D55-E55)/F55)*90))) -> 4385.714286 | I55: =IF(D55="","",(D55-G55)) -> 1285.714286 | J55: =IF(D55="","",(H55-D55)) -> 1285.714286
B56: =participants!D11 -> Mrs P | C56: =IF('data entry'!H19="","",'data entry'!H19) -> 600 | D56: =IF('data entry'!I19="","",'data entry'!I19) -> 2800 | E56: =IF('data entry'!J19="","",'data entry'!J19) -> 5000 | F56: =IF('data entry'!K19="","",'data entry'!K19) -> 80 | G56: =IF(D56="","",MAX(0,((D56-((D56-C56)/F56)*90)))) -> 325 | H56: =IF(D56="","",((D56-((D56-E56)/F56)*90))) -> 5275 | I56: =IF(D56="","",(D56-G56)) -> 2475 | J56: =IF(D56="","",(H56-D56)) -> 2475
B57: =participants!D12 -> Dr B | C57: =IF('data entry'!M19="","",'data entry'!M19) -> 900 | D57: =IF('data entry'!N19="","",'data entry'!N19) -> 3000 | E57: =IF('data entry'!O19="","",'data entry'!O19) -> 4000 | F57: =IF('data entry'!P19="","",'data entry'!P19) -> 50 | G57: 0 | H57: 4800 | I57: 3000 | J57: 1800
B58: =participants!D13 -> Rev G | C58: =IF('data entry'!R19="","",'data entry'!R19) -> 0 | D58: =IF('data entry'!S19="","",'data entry'!S19) -> 2100 | E58: =IF('data entry'!T19="","",'data entry'!T19) -> 4000 | F58: =IF('data entry'!U19="","",'data entry'!U19) -> 55 | G58: 0 | H58: 5209.090909 | I58: 2100 | J58: 3109.090909
B59: =participants!D14 -> Miss S | C59: =IF('data entry'!W19="","",'data entry'!W19) -> 1500 | D59: =IF('data entry'!X19="","",'data entry'!X19) -> 3500 | E59: =IF('data entry'!Y19="","",'data entry'!Y19) -> 5000 | F59: =IF('data entry'!Z19="","",'data entry'!Z19) -> 60 | G59: 500 | H59: 5750 | I59: 3000 | J59: 2250
B60: =participants!D15 -> Prof P | C60: =IF('data entry'!AB19="","",'data entry'!AB19) -> 3000 | D60: =IF('data entry'!AC19="","",'data entry'!AC19) -> 4000 | E60: =IF('data entry'!AD19="","",'data entry'!AD19) -> 5000 | F60: =IF('data entry'!AE19="","",'data entry'!AE19) -> 65 | G60: 2615.384615 | H60: 5384.615385 | I60: 1384.615385 | J60: 1384.615385
B61: =participants!D16 -> Dr O | C61: =IF('data entry'!AG19="","",'data entry'!AG19) -> 500 | D61: =IF('data entry'!AH19="","",'data entry'!AH19) -> 3500 | E61: =IF('data entry'!AI19="","",'data entry'!AI19) -> 5000 | F61: =IF('data entry'!AJ19="","",'data entry'!AJ19) -> 60 | G61: 0 | H61: 5750 | I61: 3500 | J61: 2250
B62: =participants!D17 -> Mrs W | C62: =IF('data entry'!AL19="","",'data entry'!AL19) -> 2000 | D62: =IF('data entry'!AM19="","",'data entry'!AM19) -> 3500 | E62: =IF('data entry'!AN19="","",'data entry'!AN19) -> 5000 | F62: =IF('data entry'!AO19="","",'data entry'!AO19) -> 75 | G62: 1700 | H62: 5300 | I62: 1800 | J62: 1800
B63: =participants!D18 -> Sgt G | C63: =IF('data entry'!AQ19="","",'data entry'!AQ19) -> 1500 | D63: =IF('data entry'!AR19="","",'data entry'!AR19) -> 3000 | E63: =IF('data entry'!AS19="","",'data entry'!AS19) -> 5000 | F63: =IF('data entry'!AT19="","",'data entry'!AT19) -> 50 | G63: 300 | H63: 6600 | I63: 2700 | J63: 3600
B64: =participants!D19 -> Mon B | C64: =IF('data entry'!AV19="","",'data entry'!AV19) -> 2362 | D64: =IF('data entry'!AW19="","",'data entry'!AW19) -> 3675 | E64: =IF('data entry'!AX19="","",'data entry'!AX19) -> 4489 | F64: =IF('data entry'!AY19="","",'data entry'!AY19) -> 80 | G64: 2197.875 | H64: 4590.75 | I64: 1477.125 | J64: 915.75
B65: =participants!D20 -> Miss P | C65: =IF('data entry'!BA19="","",'data entry'!BA19) -> 727.2 | D65: =IF('data entry'!BB19="","",'data entry'!BB19) -> 3107.568 | E65: =IF('data entry'!BC19="","",'data entry'!BC19) -> 4848 | F65: =IF('data entry'!BD19="","",'data entry'!BD19) -> 70 | G65: 47.09485714 | H65: 5345.266286 | I65: 3060.473143 | J65: 2237.698286
B66: =participants!D21 -> Insp B | C66: =IF('data entry'!BF19="","",'data entry'!BF19) -> 3500 | D66: =IF('data entry'!BG19="","",'data entry'!BG19) -> 3700 | E66: =IF('data entry'!BH19="","",'data entry'!BH19) -> 4000 | F66: =IF('data entry'!BI19="","",'data entry'!BI19) -> 50 | G66: 3340 | H66: 4240 | I66: 360 | J66: 540
B67: pooled | D67: =IF(COUNT(D55:D66)=0,"",AVERAGE(D55:D66)) -> 3248.547333 | G67: =IF(COUNT(G55:G66)=0,"",AVERAGE(G55:G66)) -> 1069.970016 | H67: =IF(COUNT(H55:H66)=0,"",AVERAGE(H55:H66)) -> 5219.203072 | I67: 2178.577318 | J67: 1970.655739

Sheet Q11
B52: ='data entry'!A20 -> Q11 | C52: ='data entry'!B20 -> 
C54: lower | D54: best | E54: upper | F54: confidence (%) | G54: 90% lower | H54: 90% upper | I54: lower bound | J54: upper bound
B55: =participants!D10 -> Col M | C55: =IF('data entry'!C20="","",'data entry'!C20) ->  | D55: =IF('data entry'!D20="","",'data entry'!D20) ->  | E55: =IF('data entry'!E20="","",'data entry'!E20) ->  | F55: =IF('data entry'!F20="","",'data entry'!F20) ->  | G55: =IF(D55="","",MAX(0,((D55-((D55-C55)/F55)*90)))) ->  | H55: =IF(D55="","",((D55-((D55-E55)/F55)*90))) ->  | I55: =IF(D55="","",(D55-G55)) ->  | J55: =IF(D55="","",(H55-D55)) -> 
B56: =participants!D11 -> Mrs P | C56: =IF('data entry'!H20="","",'data entry'!H20) ->  | D56: =IF('data entry'!I20="","",'data entry'!I20) ->  | E56: =IF('data entry'!J20="","",'data entry'!J20) ->  | F56: =IF('data entry'!K20="","",'data entry'!K20) ->  | G56: =IF(D56="","",MAX(0,((D56-((D56-C56)/F56)*90)))) ->  | H56: =IF(D56="","",((D56-((D56-E56)/F56)*90))) ->  | I56: =IF(D56="","",(D56-G56)) ->  | J56: =IF(D56="","",(H56-D56)) -> 
B57: =participants!D12 -> Dr B | C57: =IF('data entry'!M20="","",'data entry'!M20) ->  | D57: =IF('data entry'!N20="","",'data entry'!N20) ->  | E57: =IF('data entry'!O20="","",'data entry'!O20) ->  | F57: =IF('data entry'!P20="","",'data entry'!P20) -> 
B58: =participants!D13 -> Rev G | C58: =IF('data entry'!R20="","",'data entry'!R20) ->  | D58: =IF('data entry'!S20="","",'data entry'!S20) ->  | E58: =IF('data entry'!T20="","",'data entry'!T20) ->  | F58: =IF('data entry'!U20="","",'data entry'!U20) -> 
B59: =participants!D14 -> Miss S | C59: =IF('data entry'!W20="","",'data entry'!W20) ->  | D59: =IF('data entry'!X20="","",'data entry'!X20) ->  | E59: =IF('data entry'!Y20="","",'data entry'!Y20) ->  | F59: =IF('data entry'!Z20="","",'data entry'!Z20) -> 
B60: =participants!D15 -> Prof P | C60: =IF('data entry'!AB20="","",'data entry'!AB20) ->  | D60: =IF('data entry'!AC20="","",'data entry'!AC20) ->  | E60: =IF('data entry'!AD20="","",'data entry'!AD20) ->  | F60: =IF('data entry'!AE20="","",'data entry'!AE20) -> 
B61: =participants!D16 -> Dr O | C61: =IF('data entry'!AG20="","",'data entry'!AG20) ->  | D61: =IF('data entry'!AH20="","",'data entry'!AH20) ->  | E61: =IF('data entry'!AI20="","",'data entry'!AI20) ->  | F61: =IF('data entry'!AJ20="","",'data entry'!AJ20) -> 
B62: =participants!D17 -> Mrs W | C62: =IF('data entry'!AL20="","",'data entry'!AL20) ->  | D62: =IF('data entry'!AM20="","",'data entry'!AM20) ->  | E62: =IF('data entry'!AN20="","",'data entry'!AN20) ->  | F62: =IF('data entry'!AO20="","",'data entry'!AO20) -> 
B63: =participants!D18 -> Sgt G | C63: =IF('data entry'!AQ20="","",'data entry'!AQ20) ->  | D63: =IF('data entry'!AR20="","",'data entry'!AR20) ->  | E63: =IF('data entry'!AS20="","",'data entry'!AS20) ->  | F63: =IF('data entry'!AT20="","",'data entry'!AT20) -> 
B64: =participants!D19 -> Mon B | C64: =IF('data entry'!AV20="","",'data entry'!AV20) ->  | D64: =IF('data entry'!AW20="","",'data entry'!AW20) ->  | E64: =IF('data entry'!AX20="","",'data entry'!AX20) ->  | F64: =IF('data entry'!AY20="","",'data entry'!AY20) -> 
B65: =participants!D20 -> Miss P | C65: =IF('data entry'!BA20="","",'data entry'!BA20) ->  | D65: =IF('data entry'!BB20="","",'data entry'!BB20) ->  | E65: =IF('data entry'!BC20="","",'data entry'!BC20) ->  | F65: =IF('data entry'!BD20="","",'data entry'!BD20) -> 
B66: =participants!D21 -> Insp B | C66: =IF('data entry'!BF20="","",'data entry'!BF20) ->  | D66: =IF('data entry'!BG20="","",'data entry'!BG20) ->  | E66: =IF('data entry'!BH20="","",'data entry'!BH20) ->  | F66: =IF('data entry'!BI20="","",'data entry'!BI20) -> 
B67: pooled | D67: =IF(COUNT(D55:D66)=0,"",AVERAGE(D55:D66)) ->  | G67: =IF(COUNT(G55:G66)=0,"",AVERAGE(G55:G66)) ->  | H67: =IF(COUNT(H55:H66)=0,"",AVERAGE(H55:H66)) -> 

Sheet Q12
B52: ='data entry'!A21 -> Q12 | C52: ='data entry'!B21 -> 
C54: lower | D54: best | E54: upper | F54: confidence (%) | G54: 90% lower | H54: 90% upper | I54: lower bound | J54: upper bound
B55: =participants!D10 -> Col M | C55: =IF('data entry'!C21="","",'data entry'!C21) ->  | D55: =IF('data entry'!D21="","",'data entry'!D21) ->  | E55: =IF('data entry'!E21="","",'data entry'!E21) ->  | F55: =IF('data entry'!F21="","",'data entry'!F21) ->  | G55: =IF(D55="","",MAX(0,((D55-((D55-C55)/F55)*90)))) ->  | H55: =IF(D55="","",((D55-((D55-E55)/F55)*90))) ->  | I55: =IF(D55="","",(D55-G55)) ->  | J55: =IF(D55="","",(H55-D55)) -> 
B56: =participants!D11 -> Mrs P | C56: =IF('data entry'!H21="","",'data entry'!H21) ->  | D56: =IF('data entry'!I21="","",'data entry'!I21) ->  | E56: =IF('data entry'!J21="","",'data entry'!J21) ->  | F56: =IF('data entry'!K21="","",'data entry'!K21) ->  | G56: =IF(D56="","",MAX(0,((D56-((D56-C56)/F56)*90)))) ->  | H56: =IF(D56="","",((D56-((D56-E56)/F56)*90))) ->  | I56: =IF(D56="","",(D56-G56)) ->  | J56: =IF(D56="","",(H56-D56)) -> 
B57: =participants!D12 -> Dr B | C57: =IF('data entry'!M21="","",'data entry'!M21) ->  | D57: =IF('data entry'!N21="","",'data entry'!N21) ->  | E57: =IF('data entry'!O21="","",'data entry'!O21) ->  | F57: =IF('data entry'!P21="","",'data entry'!P21) -> 
B58: =participants!D13 -> Rev G | C58: =IF('data entry'!R21="","",'data entry'!R21) ->  | D58: =IF('data entry'!S21="","",'data entry'!S21) ->  | E58: =IF('data entry'!T21="","",'data entry'!T21) ->  | F58: =IF('data entry'!U21="","",'data entry'!U21) -> 
B59: =participants!D14 -> Miss S | C59: =IF('data entry'!W21="","",'data entry'!W21) ->  | D59: =IF('data entry'!X21="","",'data entry'!X21) ->  | E59: =IF('data entry'!Y21="","",'data entry'!Y21) ->  | F59: =IF('data entry'!Z21="","",'data entry'!Z21) -> 
B60: =participants!D15 -> Prof P | C60: =IF('data entry'!AB21="","",'data entry'!AB21) ->  | D60: =IF('data entry'!AC21="","",'data entry'!AC21) ->  | E60: =IF('data entry'!AD21="","",'data entry'!AD21) ->  | F60: =IF('data entry'!AE21="","",'data entry'!AE21) -> 
B61: =participants!D16 -> Dr O | C61: =IF('data entry'!AG21="","",'data entry'!AG21) ->  | D61: =IF('data entry'!AH21="","",'data entry'!AH21) ->  | E61: =IF('data entry'!AI21="","",'data entry'!AI21) ->  | F61: =IF('data entry'!AJ21="","",'data entry'!AJ21) -> 
B62: =participants!D17 -> Mrs W | C62: =IF('data entry'!AL21="","",'data entry'!AL21) ->  | D62: =IF('data entry'!AM21="","",'data entry'!AM21) ->  | E62: =IF('data entry'!AN21="","",'data entry'!AN21) ->  | F62: =IF('data entry'!AO21="","",'data entry'!AO21) -> 
B63: =participants!D18 -> Sgt G | C63: =IF('data entry'!AQ21="","",'data entry'!AQ21) ->  | D63: =IF('data entry'!AR21="","",'data entry'!AR21) ->  | E63: =IF('data entry'!AS21="","",'data entry'!AS21) ->  | F63: =IF('data entry'!AT21="","",'data entry'!AT21) -> 
B64: =participants!D19 -> Mon B | C64: =IF('data entry'!AV21="","",'data entry'!AV21) ->  | D64: =IF('data entry'!AW21="","",'data entry'!AW21) ->  | E64: =IF('data entry'!AX21="","",'data entry'!AX21) ->  | F64: =IF('data entry'!AY21="","",'data entry'!AY21) -> 
B65: =participants!D20 -> Miss P | C65: =IF('data entry'!BA21="","",'data entry'!BA21) ->  | D65: =IF('data entry'!BB21="","",'data entry'!BB21) ->  | E65: =IF('data entry'!BC21="","",'data entry'!BC21) ->  | F65: =IF('data entry'!BD21="","",'data entry'!BD21) -> 
B66: =participants!D21 -> Insp B | C66: =IF('data entry'!BF21="","",'data entry'!BF21) ->  | D66: =IF('data entry'!BG21="","",'data entry'!BG21) ->  | E66: =IF('data entry'!BH21="","",'data entry'!BH21) ->  | F66: =IF('data entry'!BI21="","",'data entry'!BI21) -> 
B67: pooled | D67: =IF(COUNT(D55:D66)=0,"",AVERAGE(D55:D66)) ->  | G67: =IF(COUNT(G55:G66)=0,"",AVERAGE(G55:G66)) ->  | H67: =IF(COUNT(H55:H66)=0,"",AVERAGE(H55:H66)) -> 

Sheet Q13
B52: ='data entry'!A22 -> Q13 | C52: ='data entry'!B22 -> 
C54: lower | D54: best | E54: upper | F54: confidence (%) | G54: 90% lower | H54: 90% upper | I54: lower bound | J54: upper bound
B55: =participants!D10 -> Col M | C55: =IF('data entry'!C22="","",'data entry'!C22) ->  | D55: =IF('data entry'!D22="","",'data entry'!D22) ->  | E55: =IF('data entry'!E22="","",'data entry'!E22) ->  | F55: =IF('data entry'!F22="","",'data entry'!F22) ->  | G55: =IF(D55="","",MAX(0,((D55-((D55-C55)/F55)*90)))) ->  | H55: =IF(D55="","",((D55-((D55-E55)/F55)*90))) ->  | I55: =IF(D55="","",(D55-G55)) ->  | J55: =IF(D55="","",(H55-D55)) -> 
B56: =participants!D11 -> Mrs P | C56: =IF('data entry'!H22="","",'data entry'!H22) ->  | D56: =IF('data entry'!I22="","",'data entry'!I22) ->  | E56: =IF('data entry'!J22="","",'data entry'!J22) ->  | F56: =IF('data entry'!K22="","",'data entry'!K22) ->  | G56: =IF(D56="","",MAX(0,((D56-((D56-C56)/F56)*90)))) ->  | H56: =IF(D56="","",((D56-((D56-E56)/F56)*90))) ->  | I56: =IF(D56="","",(D56-G56)) ->  | J56: =IF(D56="","",(H56-D56)) -> 
B57: =participants!D12 -> Dr B | C57: =IF('data entry'!M22="","",'data entry'!M22) ->  | D57: =IF('data entry'!N22="","",'data entry'!N22) ->  | E57: =IF('data entry'!O22="","",'data entry'!O22) ->  | F57: =IF('data entry'!P22="","",'data entry'!P22) -> 
B58: =participants!D13 -> Rev G | C58: =IF('data entry'!R22="","",'data entry'!R22) ->  | D58: =IF('data entry'!S22="","",'data entry'!S22) ->  | E58: =IF('data entry'!T22="","",'data entry'!T22) ->  | F58: =IF('data entry'!U22="","",'data entry'!U22) -> 
B59: =participants!D14 -> Miss S | C59: =IF('data entry'!W22="","",'data entry'!W22) ->  | D59: =IF('data entry'!X22="","",'data entry'!X22) ->  | E59: =IF('data entry'!Y22="","",'data entry'!Y22) ->  | F59: =IF('data entry'!Z22="","",'data entry'!Z22) -> 
B60: =participants!D15 -> Prof P | C60: =IF('data entry'!AB22="","",'data entry'!AB22) ->  | D60: =IF('data entry'!AC22="","",'data entry'!AC22) ->  | E60: =IF('data entry'!AD22="","",'data entry'!AD22) ->  | F60: =IF('data entry'!AE22="","",'data entry'!AE22) -> 
B61: =participants!D16 -> Dr O | C61: =IF('data entry'!AG22="","",'data entry'!AG22) ->  | D61: =IF('data entry'!AH22="","",'data entry'!AH22) ->  | E61: =IF('data entry'!AI22="","",'data entry'!AI22) ->  | F61: =IF('data entry'!AJ22="","",'data entry'!AJ22) -> 
B62: =participants!D17 -> Mrs W | C62: =IF('data entry'!AL22="","",'data entry'!AL22) ->  | D62: =IF('data entry'!AM22="","",'data entry'!AM22) ->  | E62: =IF('data entry'!AN22="","",'data entry'!AN22) ->  | F62: =IF('data entry'!AO22="","",'data entry'!AO22) -> 
B63: =participants!D18 -> Sgt G | C63: =IF('data entry'!AQ22="","",'data entry'!AQ22) ->  | D63: =IF('data entry'!AR22="","",'data entry'!AR22) ->  | E63: =IF('data entry'!AS22="","",'data entry'!AS22) ->  | F63: =IF('data entry'!AT22="","",'data entry'!AT22) -> 
B64: =participants!D19 -> Mon B | C64: =IF('data entry'!AV22="","",'data entry'!AV22) ->  | D64: =IF('data entry'!AW22="","",'data entry'!AW22) ->  | E64: =IF('data entry'!AX22="","",'data entry'!AX22) ->  | F64: =IF('data entry'!AY22="","",'data entry'!AY22) -> 
B65: =participants!D20 -> Miss P | C65: =IF('data entry'!BA22="","",'data entry'!BA22) ->  | D65: =IF('data entry'!BB22="","",'data entry'!BB22) ->  | E65: =IF('data entry'!BC22="","",'data entry'!BC22) ->  | F65: =IF('data entry'!BD22="","",'data entry'!BD22) -> 
B66: =participants!D21 -> Insp B | C66: =IF('data entry'!BF22="","",'data entry'!BF22) ->  | D66: =IF('data entry'!BG22="","",'data entry'!BG22) ->  | E66: =IF('data entry'!BH22="","",'data entry'!BH22) ->  | F66: =IF('data entry'!BI22="","",'data entry'!BI22) -> 
B67: pooled | D67: =IF(COUNT(D55:D66)=0,"",AVERAGE(D55:D66)) ->  | G67: =IF(COUNT(G55:G66)=0,"",AVERAGE(G55:G66)) ->  | H67: =IF(COUNT(H55:H66)=0,"",AVERAGE(H55:H66)) -> 

Sheet Q14
B52: ='data entry'!A23 -> Q14 | C52: ='data entry'!B23 -> 
C54: lower | D54: best | E54: upper | F54: confidence (%) | G54: 90% lower | H54: 90% upper | I54: lower bound | J54: upper bound
B55: =participants!D10 -> Col M | C55: =IF('data entry'!C23="","",'data entry'!C23) ->  | D55: =IF('data entry'!D23="","",'data entry'!D23) ->  | E55: =IF('data entry'!E23="","",'data entry'!E23) ->  | F55: =IF('data entry'!F23="","",'data entry'!F23) ->  | G55: =IF(D55="","",MAX(0,((D55-((D55-C55)/F55)*90)))) ->  | H55: =IF(D55="","",((D55-((D55-E55)/F55)*90))) ->  | I55: =IF(D55="","",(D55-G55)) ->  | J55: =IF(D55="","",(H55-D55)) -> 
B56: =participants!D11 -> Mrs P | C56: =IF('data entry'!H23="","",'data entry'!H23) ->  | D56: =IF('data entry'!I23="","",'data entry'!I23) ->  | E56: =IF('data entry'!J23="","",'data entry'!J23) ->  | F56: =IF('data entry'!K23="","",'data entry'!K23) ->  | G56: =IF(D56="","",MAX(0,((D56-((D56-C56)/F56)*90)))) ->  | H56: =IF(D56="","",((D56-((D56-E56)/F56)*90))) ->  | I56: =IF(D56="","",(D56-G56)) ->  | J56: =IF(D56="","",(H56-D56)) -> 
B57: =participants!D12 -> Dr B | C57: =IF('data entry'!M23="","",'data entry'!M23) ->  | D57: =IF('data entry'!N23="","",'data entry'!N23) ->  | E57: =IF('data entry'!O23="","",'data entry'!O23) ->  | F57: =IF('data entry'!P23="","",'data entry'!P23) -> 
B58: =participants!D13 -> Rev G | C58: =IF('data entry'!R23="","",'data entry'!R23) ->  | D58: =IF('data entry'!S23="","",'data entry'!S23) ->  | E58: =IF('data entry'!T23="","",'data entry'!T23) ->  | F58: =IF('data entry'!U23="","",'data entry'!U23) -> 
B59: =participants!D14 -> Miss S | C59: =IF('data entry'!W23="","",'data entry'!W23) ->  | D59: =IF('data entry'!X23="","",'data entry'!X23) ->  | E59: =IF('data entry'!Y23="","",'data entry'!Y23) ->  | F59: =IF('data entry'!Z23="","",'data entry'!Z23) -> 
B60: =participants!D15 -> Prof P | C60: =IF('data entry'!AB23="","",'data entry'!AB23) ->  | D60: =IF('data entry'!AC23="","",'data entry'!AC23) ->  | E60: =IF('data entry'!AD23="","",'data entry'!AD23) ->  | F60: =IF('data entry'!AE23="","",'data entry'!AE23) -> 
B61: =participants!D16 -> Dr O | C61: =IF('data entry'!AG23="","",'data entry'!AG23) ->  | D61: =IF('data entry'!AH23="","",'data entry'!AH23) ->  | E61: =IF('data entry'!AI23="","",'data entry'!AI23) ->  | F61: =IF('data entry'!AJ23="","",'data entry'!AJ23) -> 
B62: =participants!D17 -> Mrs W | C62: =IF('data entry'!AL23="","",'data entry'!AL23) ->  | D62: =IF('data entry'!AM23="","",'data entry'!AM23) ->  | E62: =IF('data entry'!AN23="","",'data entry'!AN23) ->  | F62: =IF('data entry'!AO23="","",'data entry'!AO23) -> 
B63: =participants!D18 -> Sgt G | C63: =IF('data entry'!AQ23="","",'data entry'!AQ23) ->  | D63: =IF('data entry'!AR23="","",'data entry'!AR23) ->  | E63: =IF('data entry'!AS23="","",'data entry'!AS23) ->  | F63: =IF('data entry'!AT23="","",'data entry'!AT23) -> 
B64: =participants!D19 -> Mon B | C64: =IF('data entry'!AV23="","",'data entry'!AV23) ->  | D64: =IF('data entry'!AW23="","",'data entry'!AW23) ->  | E64: =IF('data entry'!AX23="","",'data entry'!AX23) ->  | F64: =IF('data entry'!AY23="","",'data entry'!AY23) -> 
B65: =participants!D20 -> Miss P | C65: =IF('data entry'!BA23="","",'data entry'!BA23) ->  | D65: =IF('data entry'!BB23="","",'data entry'!BB23) ->  | E65: =IF('data entry'!BC23="","",'data entry'!BC23) ->  | F65: =IF('data entry'!BD23="","",'data entry'!BD23) -> 
B66: =participants!D21 -> Insp B | C66: =IF('data entry'!BF23="","",'data entry'!BF23) ->  | D66: =IF('data entry'!BG23="","",'data entry'!BG23) ->  | E66: =IF('data entry'!BH23="","",'data entry'!BH23) ->  | F66: =IF('data entry'!BI23="","",'data entry'!BI23) -> 
B67: pooled | D67: =IF(COUNT(D55:D66)=0,"",AVERAGE(D55:D66)) ->  | G67: =IF(COUNT(G55:G66)=0,"",AVERAGE(G55:G66)) ->  | H67: =IF(COUNT(H55:H66)=0,"",AVERAGE(H55:H66)) -> 

Sheet outcomes_1
P8: ='data entry'!A8 -> Q1 | Q8: ='data entry'!B8 -> Under ideal conditions (e.g. prior to human occupation) what do you think is the carrying capacity of the whole island?
P9: ='data entry'!A10 -> Q2 | Q9: ='data entry'!B10 -> What will be the population size 30 years hence under the base case?
P10: ='data entry'!A12 -> Q3 | Q10: ='data entry'!B12 -> What will be the population size 30 years hence under Action 1 - Ex-situ ?
P11: ='data entry'!A13 -> Q4 | Q11: ='data entry'!B13 -> What will be the population size 30 years hence under Action 2 - Cat control plus ?
P12: ='data entry'!A14 -> Q5 | Q12: ='data entry'!B14 -> What will be the population size 30 years hence under Action 3 - Yellow crazy ant control plus ?
P13: ='data entry'!A15 -> Q6 | Q13: ='data entry'!B15 -> What will be the population size 30 years hence under Action 4 - Forest regeneration plus A ?
P14: ='data entry'!A16 -> Q7 | Q14: ='data entry'!B16 -> What will be the population size 30 years hence under Action 5 - Forest regeneration plus B ?
P15: ='data entry'!A17 -> Q8 | Q15: ='data entry'!B17 -> What will be the population size 30 years hence under Action 6 - Expand conservation estate A ?
P16: ='data entry'!A18 -> Q9 | Q16: ='data entry'!B18 -> What will be the population size 30 years hence under Action 7 - Expand conservation estate B ?
P17: ='data entry'!A19 -> Q10 | Q17: ='data entry'!B19 -> What will be the population size 30 years hence under Action 8 - Cadmium control ?
P18: ='data entry'!A20 -> Q11 | Q18: ='data entry'!B20 -> 
P19: ='data entry'!A21 -> Q12 | Q19: ='data entry'!B21 -> 
P20: ='data entry'!A22 -> Q13 | Q20: ='data entry'!B22 -> 
P21: ='data entry'!A23 -> Q14 | Q21: ='data entry'!B23 -> 
C42: best | D42: lower | E42: upper | F42: calc1 | G42: calc 2 | H42: cost ($k)
B43: Q1 | C43: ='Q1'!$D$67 -> 4875 | D43: ='Q1'!$I$67 -> 1745.723684 | E43: ='Q1'!$J$67 -> 1733.670113 | F43: =C43+E43 -> 6608.670113 | G43: =MAX(F43:F51)+500 -> 7108.670113
B44: Q2 | C44: ='Q2'!$D$67 -> 3128.833333 | D44: ='Q2'!$I$67 -> 2216.640194 | E44: ='Q2'!$J$67 -> 1554.952851 | F44: =C44+E44 -> 4683.786184 | G44: =G$43 -> 7108.670113
B45: Q3 | C45: ='Q3'!$D$67 -> 3274.346667 | D45: ='Q3'!$I$67 -> 2317.523532 | E45: ='Q3'!$J$67 -> 2006.477931 | F45: 5280.824598 | G45: 7108.670113 | H45: =costs!K21 -> 4101.521739
B46: Q4 | C46: ='Q4'!$D$67 -> 3161.846667 | D46: ='Q4'!$I$67 -> 2349.013917 | E46: ='Q4'!$J$67 -> 1741.858176 | F46: 4903.704842 | G46: 7108.670113 | H46: =costs!K22 -> 779.5217391
B47: Q5 | C47: ='Q5'!$D$67 -> 2965.053333 | D47: ='Q5'!$I$67 -> 2255.568114 | E47: ='Q5'!$J$67 -> 1875.089396 | F47: 4840.142729 | G47: 7108.670113 | H47: =costs!K23 -> 839.1565217
B48: Q6 | C48: ='Q6'!$D$67 -> 3127.65 | D48: ='Q6'!$I$67 -> 2243.240018 | E48: ='Q6'!$J$67 -> 1723.816415 | F48: 4851.466415 | G48: 7108.670113 | H48: =costs!K24 -> 7326.782609
B49: Q7 | C49: ='Q7'!$D$67 -> 3460.566667 | D49: ='Q7'!$I$67 -> 2403.73109 | E49: ='Q7'!$J$67 -> 1863.994986 | F49: 5324.561653 | G49: 7108.670113 | H49: =costs!K25 -> 36633.91304
B50: Q8 | C50: ='Q8'!$D$67 -> 3439.316667 | D50: ='Q8'!$I$67 -> 2237.519437 | E50: ='Q8'!$J$67 -> 1648.917813 | F50: 5088.23448 | G50: 7108.670113 | H50: =costs!K26 -> 21956.08696
B51: Q9 | C51: ='Q9'!$D$67 -> 3666.691667 | D51: ='Q9'!$I$67 -> 2357.692056 | E51: ='Q9'!$J$67 -> 1667.493644 | F51: 5334.185311 | G51: 7108.670113 | H51: =costs!K27 -> 26781.30435
B52: Q10 | C52: ='Q10'!$D$67 -> 3248.547333 | D52: ='Q10'!$I$67 -> 2178.577318 | E52: ='Q10'!$J$67 -> 1970.655739 | F52: =C52+E52 -> 5219.203072 | G52: 7108.670113 | H52: =costs!K28 -> 2247.086957
B53: Q11 | C53: ='Q11'!$D$67 ->  | D53: ='Q11'!$I$67 ->  | E53: ='Q11'!$J$67 ->  | F53: =C53+E53 ->  | G53: 7108.670113 | H53: =costs!K29 -> 
B54: Q12 | C54: ='Q12'!$D$67 ->  | D54: ='Q12'!$I$67 ->  | E54: ='Q12'!$J$67 ->  | F54: =C54+E54 ->  | G54: 7108.670113 | H54: =costs!K30 -> 
B55: Q13 | C55: ='Q13'!$D$67 ->  | D55: ='Q13'!$I$67 ->  | E55: ='Q13'!$J$67 ->  | F55: =C55+E55 ->  | G55: 7108.670113 | H55: =costs!K31 -> 
B56: Q14 | C56: ='Q14'!$D$67 ->  | D56: ='Q14'!$I$67 ->  | E56: ='Q14'!$J$67 ->  | F56: =C56+E56 ->  | G56: 7108.670113 | H56: =costs!K32 -> 

Sheet outcomes_2
B2: Outcomes 2
B4: The cost-effectiveness of actions (conservation value divided by cost) is tabulated here.
B5: The conservation benefit comes from the curves in the ex-situ judgments tab. | D5: For each action, it is the difference in the value of the population size under the base case and the action.
B6: For the ex-situ action, there is additional value from an insurance population included in the calculation of conservation benefit.
B7: Costs are from the costs tab.
B9: The cumulative conservation benefits of implementing multiple candidate actions (described in terms of population size in the wild) are graphed below the table, along with cumulative costs.
B10: The graph can be used to gauge the strength of the argument for additional funding. Note that the graph does not include the value of an insurance population.
B12: Before considering the graph, click on the RANK button to order the actions from best (most cost-effective) to worst (least cost-effective).
B15: Action | C15: =CONCATENATE("estimated population size in ",preliminaries!C14," years") -> estimated population size in 30 years | D15: conservation benefit | E15: cost ($m) | F15: cost-effectiveness
B16: =IF('candidate actions'!C11="","",'candidate actions'!C11) -> Ex-situ | C16: =IF('Q3'!D67="","",'Q3'!D67) -> 3274.346667 | D16: =IF(C16="","",100*calc!D17) -> 0.7379366045 | E16: =IF(costs!K21="","",costs!K21/1000) -> 4.101521739 | F16: =IF(B16="",-999,D16/E16) -> 0.1799177601
B17: =IF('candidate actions'!C18="","",'candidate actions'!C18) -> Cadmium control | C17: =IF('Q10'!D67="","",'Q10'!D67) -> 3248.547333 | D17: =IF(C17="","",100*((('ex-situ judgments'!$E$34/100)*(1-EXP(-(C17-0)/'value judgment'!$D$45))/(1-EXP(-('Q1'!$D$67-0)/'value judgment'!$D$45))+0)-(('ex-situ judgments'!$E$34/100)*(1-EXP(-('Q2'!$D$67-0)/'value judgment'!$D$45))/(1-EXP(-('Q1'!$D$67-0)/'value judgment'!$D$45))+0))) -> 0.3541090379 | E17: =IF(costs!K28="","",costs!K28/1000) -> 2.247086957 | F17: 0.1575858188
B18: =IF('candidate actions'!C12="","",'candidate actions'!C12) -> Cat control plus | C18: =IF('Q4'!D67="","",'Q4'!D67) -> 3161.846667 | D18: =IF(C18="","",100*((('ex-situ judgments'!$E$34/100)*(1-EXP(-(C18-0)/'value judgment'!$D$45))/(1-EXP(-('Q1'!$D$67-0)/'value judgment'!$D$45))+0)-(('ex-situ judgments'!$E$34/100)*(1-EXP(-('Q2'!$D$67-0)/'value judgment'!$D$45))/(1-EXP(-('Q1'!$D$67-0)/'value judgment'!$D$45))+0))) -> 0.1025649773 | E18: =IF(costs!K22="","",costs!K22/1000) -> 0.7795217391 | F18: 0.131574236
B19: =IF('candidate actions'!C17="","",'candidate actions'!C17) -> Expand conservation estate B | C19: =IF('Q9'!D67="","",'Q9'!D67) -> 3666.691667 | D19: =IF(C19="","",100*((('ex-situ judgments'!$E$34/100)*(1-EXP(-(C19-0)/'value judgment'!$D$45))/(1-EXP(-('Q1'!$D$67-0)/'value judgment'!$D$45))+0)-(('ex-situ judgments'!$E$34/100)*(1-EXP(-('Q2'!$D$67-0)/'value judgment'!$D$45))/(1-EXP(-('Q1'!$D$67-0)/'value judgment'!$D$45))+0))) -> 1.2701957 | E19: =IF(costs!K27="","",costs!K27/1000) -> 26.78130435 | F19: 0.04742844799
B20: =IF('candidate actions'!C16="","",'candidate actions'!C16) -> Expand conservation estate A | C20: =IF('Q8'!D67="","",'Q8'!D67) -> 3439.316667 | D20: =IF(C20="","",100*((('ex-situ judgments'!$E$34/100)*(1-EXP(-(C20-0)/'value judgment'!$D$45))/(1-EXP(-('Q1'!$D$67-0)/'value judgment'!$D$45))+0)-(('ex-situ judgments'!$E$34/100)*(1-EXP(-('Q2'!$D$67-0)/'value judgment'!$D$45))/(1-EXP(-('Q1'!$D$67-0)/'value judgment'!$D$45))+0))) -> 0.8267747749 | E20: =IF(costs!K26="","",costs!K26/1000) -> 21.95608696 | F20: 0.03765583442
B21: =IF('candidate actions'!C15="","",'candidate actions'!C15) -> Forest regeneration plus B | C21: =IF('Q7'!D67="","",'Q7'!D67) -> 3460.566667 | D21: =IF(C21="","",100*((('ex-situ judgments'!$E$34/100)*(1-EXP(-(C21-0)/'value judgment'!$D$45))/(1-EXP(-('Q1'!$D$67-0)/'value judgment'!$D$45))+0)-(('ex-situ judgments'!$E$34/100)*(1-EXP(-('Q2'!$D$67-0)/'value judgment'!$D$45))/(1-EXP(-('Q1'!$D$67-0)/'value judgment'!$D$45))+0))) -> 0.8732950126 | E21: =IF(costs!K25="","",costs!K25/1000) -> 36.63391304 | F21: 0.02383843112
B22: =IF('candidate actions'!C14="","",'candidate actions'!C14) -> Forest regeneration plus A | C22: =IF('Q6'!D67="","",'Q6'!D67) -> 3127.65 | D22: =IF(C22="","",100*((('ex-situ judgments'!$E$34/100)*(1-EXP(-(C22-0)/'value judgment'!$D$45))/(1-EXP(-('Q1'!$D$67-0)/'value judgment'!$D$45))+0)-(('ex-situ judgments'!$E$34/100)*(1-EXP(-('Q2'!$D$67-0)/'value judgment'!$D$45))/(1-EXP(-('Q1'!$D$67-0)/'value judgment'!$D$45))+0))) -> -0.003749071516 | E22: =IF(costs!K24="","",costs!K24/1000) -> 7.326782609 | F22: -0.0005116941114
B23: =IF('candidate actions'!C13="","",'candidate actions'!C13) -> Yellow crazy ant control plus | C23: =IF('Q5'!D67="","",'Q5'!D67) -> 2965.053333 | D23: =IF(C23="","",100*((('ex-situ judgments'!$E$34/100)*(1-EXP(-(C23-0)/'value judgment'!$D$45))/(1-EXP(-('Q1'!$D$67-0)/'value judgment'!$D$45))+0)-(('ex-situ judgments'!$E$34/100)*(1-EXP(-('Q2'!$D$67-0)/'value judgment'!$D$45))/(1-EXP(-('Q1'!$D$67-0)/'value judgment'!$D$45))+0))) -> -0.5705453123 | E23: =IF(costs!K23="","",costs!K23/1000) -> 0.8391565217 | F23: -0.6799033286
B24: =IF('candidate actions'!C19="","",'candidate actions'!C19) ->  | C24: =IF('Q11'!D67="","",'Q11'!D67) ->  | D24: =IF(C24="","",100*((('ex-situ judgments'!$E$34/100)*(1-EXP(-(C24-0)/'value judgment'!$D$45))/(1-EXP(-('Q1'!$D$67-0)/'value judgment'!$D$45))+0)-(('ex-situ judgments'!$E$34/100)*(1-EXP(-('Q2'!$D$67-0)/'value judgment'!$D$45))/(1-EXP(-('Q1'!$D$67-0)/'value judgment'!$D$45))+0))) ->  | E24: =IF(costs!K29="","",costs!K29/1000) ->  | F24: -999
B25: =IF('candidate actions'!C20="","",'candidate actions'!C20) ->  | C25: =IF('Q12'!D67="","",'Q12'!D67) ->  | D25: =IF(C25="","",100*((('ex-situ judgments'!$E$34/100)*(1-EXP(-(C25-0)/'value judgment'!$D$45))/(1-EXP(-('Q1'!$D$67-0)/'value judgment'!$D$45))+0)-(('ex-situ judgments'!$E$34/100)*(1-EXP(-('Q2'!$D$67-0)/'value judgment'!$D$45))/(1-EXP(-('Q1'!$D$67-0)/'value judgment'!$D$45))+0))) ->  | E25: =IF(costs!K30="","",costs!K30/1000) ->  | F25: -999
B26: =IF('candidate actions'!C21="","",'candidate actions'!C21) ->  | C26: =IF('Q13'!D67="","",'Q13'!D67) ->  | D26: =IF(C26="","",100*((('ex-situ judgments'!$E$34/100)*(1-EXP(-(C26-0)/'value judgment'!$D$45))/(1-EXP(-('Q1'!$D$67-0)/'value judgment'!$D$45))+0)-(('ex-situ judgments'!$E$34/100)*(1-EXP(-('Q2'!$D$67-0)/'value judgment'!$D$45))/(1-EXP(-('Q1'!$D$67-0)/'value judgment'!$D$45))+0))) ->  | E26: =IF(costs!K31="","",costs!K31/1000) ->  | F26: -999
B27: =IF('candidate actions'!C22="","",'candidate actions'!C22) ->  | C27: =IF('Q14'!D67="","",'Q14'!D67) ->  | D27: =IF(C27="","",100*((('ex-situ judgments'!$E$34/100)*(1-EXP(-(C27-0)/'value judgment'!$D$45))/(1-EXP(-('Q1'!$D$67-0)/'value judgment'!$D$45))+0)-(('ex-situ judgments'!$E$34/100)*(1-EXP(-('Q2'!$D$67-0)/'value judgment'!$D$45))/(1-EXP(-('Q1'!$D$67-0)/'value judgment'!$D$45))+0))) ->  | E27: =IF(costs!K32="","",costs!K32/1000) ->  | F27: -999

Sheet calc
B9: Ex-situ conservation value
B10: estimated population size in the wild | C10: =outcomes_2!C16 -> 3274.346667
B12: state | C12: value|insurance = no | D12: value|insurance = yes
B13: probability | C13: =1-'ex-situ judgments'!$F$17 -> 0.2 | D13: ='ex-situ judgments'!$F$17 -> 0.8
B14: ex-situ | C14: =('ex-situ judgments'!$E$34/100)*(1-EXP(-(C10-0)/'value judgment'!$D$45))/(1-EXP(-('Q1'!$D$67-0)/'value judgment'!$D$45))+0 -> 0.9803945179 | D14: =((100-'ex-situ judgments'!$E$35)/100)*(1-EXP(-(C10-0)/'value judgment'!$D$45))/(1-EXP(-('Q1'!$D$67-0)/'value judgment'!$D$45))+('ex-situ judgments'!$E$35/100) -> 0.9843156144
B15: base case | C15: =('ex-situ judgments'!$E$34/100)*(1-EXP(-('Q2'!$D$67-0)/'value judgment'!$D$45))/(1-EXP(-('Q1'!$D$67-0)/'value judgment'!$D$45))+0 -> 0.976152029 | D15: =C15 -> 0.976152029
B16: benefit | C16: =C14-C15 -> 0.004242488917 | D16: =D14-D15 -> 0.008163585327
B17: weighted benefit | D17: =C13*C16+D13*D16 -> 0.007379366045
B23: Cumulative benefit
B25: =outcomes_2!B15 -> Action | C25: =outcomes_2!C15 -> estimated population size in 30 years | D25: =outcomes_2!D15 -> conservation benefit | E25: =outcomes_2!E15 -> cost ($m) | F25: =outcomes_2!F15 -> cost-effectiveness | G25: cumulative cost | H25: proportional benefit | I25: cumulative benefit
B26: =outcomes_2!B16 -> Ex-situ | C26: =outcomes_2!C16 -> 3274.346667 | D26: =outcomes_2!D16 -> 0.7379366045 | E26: =outcomes_2!E16 -> 4.101521739 | F26: =outcomes_2!F16 -> 0.1799177601 | G26: =IF(E26="","",SUM(E$26:E26)) -> 4.101521739 | H26: =IF(C26="","",(C26-'Q2'!$D$67)/('Q1'!$D$67-'Q2'!$D$67)) -> 0.08333301518 | I26: =IF(B26="","",'Q2'!$D$67+(1-PRODUCT((1-H26)))*('Q1'!$D$67-'Q2'!$D$67)) -> 3274.346667
B27: =outcomes_2!B17 -> Cadmium control | C27: =outcomes_2!C17 -> 3248.547333 | D27: =outcomes_2!D17 -> 0.3541090379 | E27: =outcomes_2!E17 -> 2.247086957 | F27: =outcomes_2!F17 -> 0.1575858188 | G27: =IF(E27="","",SUM(E$26:E27)) -> 6.348608696 | H27: =IF(C27="","",(C27-'Q2'!$D$67)/('Q1'!$D$67-'Q2'!$D$67)) -> 0.06855817505 | I27: =IF(B27="","",'Q2'!$D$67+(1-PRODUCT((1-H26),(1-H27)))*('Q1'!$D$67-'Q2'!$D$67)) -> 3384.084538
B28: =outcomes_2!B18 -> Cat control plus | C28: =outcomes_2!C18 -> 3161.846667 | D28: =outcomes_2!D18 -> 0.1025649773 | E28: =outcomes_2!E18 -> 0.7795217391 | F28: =outcomes_2!F18 -> 0.131574236 | G28: =IF(E28="","",SUM(E$26:E28)) -> 7.128130435 | H28: =IF(C28="","",(C28-'Q2'!$D$67)/('Q1'!$D$67-'Q2'!$D$67)) -> 0.01890617543 | I28: =IF(B28="","",'Q2'!$D$67+(1-PRODUCT((1-H26),(1-H27),(1-H28)))*('Q1'!$D$67-'Q2'!$D$67)) -> 3412.272047
B29: =outcomes_2!B19 -> Expand conservation estate B | C29: =outcomes_2!C19 -> 3666.691667 | D29: =outcomes_2!D19 -> 1.2701957 | E29: =outcomes_2!E19 -> 26.78130435 | F29: =outcomes_2!F19 -> 0.04742844799 | G29: =IF(E29="","",SUM(E$26:E29)) -> 33.90943478 | H29: =IF(C29="","",(C29-'Q2'!$D$67)/('Q1'!$D$67-'Q2'!$D$67)) -> 0.3080223346 | I29: =IF(B29="","",'Q2'!$D$67+(1-PRODUCT((1-H26),(1-H27),(1-H28),(1-H29)))*('Q1'!$D$67-'Q2'!$D$67)) -> 3862.824926
B30: =outcomes_2!B20 -> Expand conservation estate A | C30: =outcomes_2!C20 -> 3439.316667 | D30: =outcomes_2!D20 -> 0.8267747749 | E30: =outcomes_2!E20 -> 21.95608696 | F30: =outcomes_2!F20 -> 0.03765583442 | G30: =IF(E30="","",SUM(E$26:E30)) -> 55.86552174 | H30: =IF(C30="","",(C30-'Q2'!$D$67)/('Q1'!$D$67-'Q2'!$D$67)) -> 0.177808533 | I30: =IF(B30="","",'Q2'!$D$67+(1-PRODUCT((1-H26),(1-H27),(1-H28),(1-H29),(1-H30)))*('Q1'!$D$67-'Q2'!$D$67)) -> 4042.798291
B31: =outcomes_2!B21 -> Forest regeneration plus B | C31: =outcomes_2!C21 -> 3460.566667 | D31: =outcomes_2!D21 -> 0.8732950126 | E31: =outcomes_2!E21 -> 36.63391304 | F31: =outcomes_2!F21 -> 0.02383843112 | G31: =IF(E31="","",SUM(E$26:E31)) -> 92.49943478 | H31: =IF(C31="","",(C31-'Q2'!$D$67)/('Q1'!$D$67-'Q2'!$D$67)) -> 0.1899780472 | I31: =IF(B31="","",'Q2'!$D$67+(1-PRODUCT((1-H26),(1-H27),(1-H28),(1-H29),(1-H30),(1-H31)))*('Q1'!$D$67-'Q2'!$D$67)) -> 4200.898347
B32: =outcomes_2!B22 -> Forest regeneration plus A | C32: =outcomes_2!C22 -> 3127.65 | D32: =outcomes_2!D22 -> -0.003749071516 | E32: =outcomes_2!E22 -> 7.326782609 | F32: =outcomes_2!F22 -> -0.0005116941114 | G32: =IF(E32="","",SUM(E$26:E32)) -> 99.82621739 | H32: =IF(C32="","",(C32-'Q2'!$D$67)/('Q1'!$D$67-'Q2'!$D$67)) -> -0.0006776749069 | I32: =IF(B32="","",'Q2'!$D$67+(1-PRODUCT((1-H26),(1-H27),(1-H28),(1-H29),(1-H30),(1-H31),(1-H32)))*('Q1'!$D$67-'Q2'!$D$67)) -> 4200.441525
B33: =outcomes_2!B23 -> Yellow crazy ant control plus | C33: =outcomes_2!C23 -> 2965.053333 | D33: =outcomes_2!D23 -> -0.5705453123 | E33: =outcomes_2!E23 -> 0.8391565217 | F33: =outcomes_2!F23 -> -0.6799033286 | G33: =IF(E33="","",SUM(E$26:E33)) -> 100.6653739 | H33: =IF(C33="","",(C33-'Q2'!$D$67)/('Q1'!$D$67-'Q2'!$D$67)) -> -0.09379402501 | I33: =IF(B33="","",'Q2'!$D$67+(1-PRODUCT((1-H26),(1-H27),(1-H28),(1-H29),(1-H30),(1-H31),(1-H32),(1-H33)))*('Q1'!$D$67-'Q2'!$D$67)) -> 4137.17197
B34: =outcomes_2!B24 ->  | C34: =outcomes_2!C24 ->  | D34: =outcomes_2!D24 ->  | E34: =outcomes_2!E24 ->  | F34: =outcomes_2!F24 -> -999 | G34: =IF(E34="","",SUM(E$26:E34)) ->  | H34: =IF(C34="","",(C34-'Q2'!$D$67)/('Q1'!$D$67-'Q2'!$D$67)) ->  | I34: =IF(B34="","",'Q2'!$D$67+(1-PRODUCT((1-H26),(1-H27),(1-H28),(1-H29),(1-H30),(1-H31),(1-H32),(1-H33),(1-H34)))*('Q1'!$D$67-'Q2'!$D$67)) -> 
B35: =outcomes_2!B25 ->  | C35: =outcomes_2!C25 ->  | D35: =outcomes_2!D25 ->  | E35: =outcomes_2!E25 ->  | F35: =outcomes_2!F25 -> -999 | G35: =IF(E35="","",SUM(E$26:E35)) ->  | H35: =IF(C35="","",(C35-'Q2'!$D$67)/('Q1'!$D$67-'Q2'!$D$67)) ->  | I35: =IF(B35="","",'Q2'!$D$67+(1-PRODUCT((1-H26),(1-H27),(1-H28),(1-H29),(1-H30),(1-H31),(1-H32),(1-H33),(1-H34),(1-H35)))*('Q1'!$D$67-'Q2'!$D$67)) -> 
B36: =outcomes_2!B26 ->  | C36: =outcomes_2!C26 ->  | D36: =outcomes_2!D26 ->  | E36: =outcomes_2!E26 ->  | F36: =outcomes_2!F26 -> -999 | G36: =IF(E36="","",SUM(E$26:E36)) ->  | H36: =IF(C36="","",(C36-'Q2'!$D$67)/('Q1'!$D$67-'Q2'!$D$67)) ->  | I36: =IF(B36="","",'Q2'!$D$67+(1-PRODUCT((1-H26),(1-H27),(1-H28),(1-H29),(1-H30),(1-H31),(1-H32),(1-H33),(1-H34),(1-H35),(1-H36)))*('Q1'!$D$67-'Q2'!$D$67)) -> 
B37: =outcomes_2!B27 ->  | C37: =outcomes_2!C27 ->  | D37: =outcomes_2!D27 ->  | E37: =outcomes_2!E27 ->  | F37: =outcomes_2!F27 -> -999 | G37: =IF(E37="","",SUM(E$26:E37)) ->  | H37: =IF(C37="","",(C37-'Q2'!$D$67)/('Q1'!$D$67-'Q2'!$D$67)) ->  | I37: =IF(B37="","",'Q2'!$D$67+(1-PRODUCT((1-H26),(1-H27),(1-H28),(1-H29),(1-H30),(1-H31),(1-H32),(1-H33),(1-H34),(1-H35),(1-H36),(1-H37)))*('Q1'!$D$67-'Q2'!$D$67)) -> 
B47: Cumulative graph
B49: Number of actions | C49: cumulative cost (RHS) | D49: pad cost | E49: pad benefit | F49: cumulative benefit (LHS)
B50: base case | C50: 0 | F50: ='Q2'!D67 -> 3128.833333
B51: 1 | C51: =IF(G26="",0,G26) -> 4.101521739 | F51: =IF(I26="",0,I26) -> 3274.346667
B52: 2 | C52: 6.348608696 | F52: 3384.084538
B53: 3 | C53: 7.128130435 | F53: 3412.272047
B54: 4 | C54: 33.90943478 | F54: 3862.824926
B55: 5 | C55: 55.86552174 | F55: 4042.798291
B56: 6 | C56: 92.49943478 | F56: 4200.898347
B57: 7 | C57: 99.82621739 | F57: 4200.441525
B58: 8 | C58: 100.6653739 | F58: 4137.17197
B59: 9 | C59: 0 | F59: 0
B60: 10 | C60: 0 | F60: 0
B61: 11 | C61: 0 | F61: 0
B62: 12 | C62: 0 | F62: 0
